Workbook

Sheet الرئيسية
B38: تصميم وبرمجة / محمود عسر | F38: 012-76812553 | K38: =NOW() -> 2021-03-25T14:28:34.350 | N38: برنامج المخازن المتكامل

Sheet رصيد اول
A1: الكود | B1: الصنف | C1: رصيد اول المدة | D1: سعر الشراء
A2: 60001 | B2: اكسجين | C2: 400 | D2: 15
A3: 60002 | B3: هيدروسلفيت | C3: 1010 | D3: 25
A4: 60003 | B4: صودا اش | C4: 754 | D4: 5.2
A5: 60006 | B5: ملح جلوبر | C5: 1630 | D5: 4
A6: 60004 | B6: تشرب | C6: 120 | D6: 15
A7: 60010 | B7: ملح طعام | C7: 5000 | D7: 0.9

Sheet الوارد
A1: مستند رقم | B1: التاريخ | C1: المورد | D1: الكود | E1: اسم الصنف | F1: الكمية | G1: السعر | H1: القيمة
A2: 1 | B2: 21/2 | C2: سوبر كيم | D2: 60001 | E2: اكسجين | F2: 500 | G2: 10 | H2: 5000
A3: 2 | B3: 2021-03-22 | C3: phkslf | D3: 60001 | E3: اكسجين | F3: 10 | G3: 15 | H3: 150
A4: 3 | B4: 2021-03-22 | C4: pikpi | D4: 60002 | E4: هيدروسلفيت | F4: 10 | G4: 25 | H4: 250
A5: 3 | B5: 2021-03-22 | C5: pikpi | D5: 60002 | E5: هيدروسلفيت | F5: 10 | G5: 25 | H5: 250
A6: 4 | B6: 2021-03-22 | C6: kregma | D6: 60003 | E6: صودا اش | F6: 10 | G6: 5.2 | H6: 52
A7: 5 | B7: 2021-03-22 | C7: سوبر كيم | D7: 60001 | E7: اكسجين | F7: 100 | G7: 15 | H7: 1500
A8: 6 | B8: 2021-03-22 | C8: phksak; | D8: 60002 | E8: هيدروسلفيت | F8: 10 | G8: 25 | H8: 250

Sheet المنصرف
A1: مستند رقم | B1: التاريخ | C1: الكود | D1: اسم الصنف | E1: الكمية | F1: السعر | G1: القيمة | H1: اسم الصارف | I1: الماكينة
A2: 1 | B2: 2021-03-23 | C2: 60001 | D2: اكسجين | E2: 10 | F2: 15 | G2: 150
A3: 2 | B3: 2021-03-23 | C3: 60002 | D3: هيدروسلفيت | E3: 20 | F3: 25 | G3: 250
A4: 3 | B4: 2021-03-23 | C4: 60002 | D4: هيدروسلفيت | E4: 20 | F4: 25 | G4: 250

Sheet الرصيد
A1: الكود | B1: الصنف | C1: اول المده | D1: قيمة اول المدة | E1: الوارد | F1: قيمة الوارد | G1: المنصرف | H1: قيمة المنصرف | I1: الرصيد | J1: قيمة الرصيد | K1: السعر
A2: ='رصيد اول'!A2 -> 60001 | B2: ='رصيد اول'!B2 -> اكسجين | C2: =SUMIF('رصيد اول'!$A:$B,'رصيد اول'!A2,'رصيد اول'!C:C) -> 400 | D2: =C2*K2 -> 6000 | E2: =SUMIF(الوارد!$D:$D,الرصيد!A2,الوارد!F:F) -> 610 | F2: =+E2*K2 -> 9150 | G2: =SUMIF(المنصرف!$C$1:$C$10000,A2,المنصرف!E:E) -> 10 | H2: =G2*K2 -> 150 | I2: =C2+E2-G2 -> 1000 | J2: =I2*K2 -> 15000 | K2: ='رصيد اول'!D2 -> 15
A3: ='رصيد اول'!A3 -> 60002 | B3: ='رصيد اول'!B3 -> هيدروسلفيت | C3: =SUMIF('رصيد اول'!$A:$B,'رصيد اول'!A3,'رصيد اول'!C:C) -> 1010 | D3: =C3*K3 -> 25250 | E3: =SUMIF(الوارد!$D:$D,الرصيد!A3,الوارد!F:F) -> 30 | F3: =+E3*K3 -> 750 | G3: =SUMIF(المنصرف!$C$1:$C$10000,A3,المنصرف!E:E) -> 40 | H3: =G3*K3 -> 1000 | I3: =C3+E3-G3 -> 1000 | J3: =I3*K3 -> 25000 | K3: ='رصيد اول'!D3 -> 25
A4: ='رصيد اول'!A4 -> 60003 | B4: ='رصيد اول'!B4 -> صودا اش | C4: =SUMIF('رصيد اول'!$A:$B,'رصيد اول'!A4,'رصيد اول'!C:C) -> 754 | D4: =C4*K4 -> 3920.8 | E4: =SUMIF(الوارد!$D:$D,الرصيد!A4,الوارد!F:F) -> 10 | F4: =+E4*K4 -> 52 | G4: =SUMIF(المنصرف!$C$1:$C$10000,A4,المنصرف!E:E) -> 0 | H4: =G4*K4 -> 0 | I4: 764 | J4: =I4*K4 -> 3972.8 | K4: ='رصيد اول'!D4 -> 5.2
A5: ='رصيد اول'!A5 -> 60006 | B5: ='رصيد اول'!B5 -> ملح جلوبر | C5: =SUMIF('رصيد اول'!$A:$B,'رصيد اول'!A5,'رصيد اول'!C:C) -> 1630 | D5: 6520 | E5: =SUMIF(الوارد!$D:$D,الرصيد!A5,الوارد!F:F) -> 0 | F5: 0 | G5: =SUMIF(المنصرف!$C$1:$C$10000,A5,المنصرف!E:E) -> 0 | H5: 0 | I5: 1630 | J5: 6520 | K5: ='رصيد اول'!D5 -> 4
A6: ='رصيد اول'!A6 -> 60004 | B6: ='رصيد اول'!B6 -> تشرب | C6: =SUMIF('رصيد اول'!$A:$B,'رصيد اول'!A6,'رصيد اول'!C:C) -> 120 | D6: 1800 | E6: =SUMIF(الوارد!$D:$D,الرصيد!A6,الوارد!F:F) -> 0 | F6: 0 | G6: =SUMIF(المنصرف!$C$1:$C$10000,A6,المنصرف!E:E) -> 0 | H6: 0 | I6: 120 | J6: 1800 | K6: ='رصيد اول'!D6 -> 15
A7: ='رصيد اول'!A7 -> 60010 | B7: ='رصيد اول'!B7 -> ملح طعام | C7: =SUMIF('رصيد اول'!$A:$B,'رصيد اول'!A7,'رصيد اول'!C:C) -> 5000 | D7: 4500 | E7: =SUMIF(الوارد!$D:$D,الرصيد!A7,الوارد!F:F) -> 0 | F7: 0 | G7: =SUMIF(المنصرف!$C$1:$C$10000,A7,المنصرف!E:E) -> 0 | H7: 0 | I7: 5000 | J7: 4500 | K7: ='رصيد اول'!D7 -> 0.9
A8: ='رصيد اول'!A8 -> 0 | B8: ='رصيد اول'!B8 -> 0 | C8: =SUMIF('رصيد اول'!$A:$B,'رصيد اول'!A8,'رصيد اول'!C:C) -> 0 | D8: 0 | E8: =SUMIF(الوارد!$D:$D,الرصيد!A8,الوارد!F:F) -> 0 | F8: 0 | G8: =SUMIF(المنصرف!$C$1:$C$10000,A8,المنصرف!E:E) -> 0 | H8: 0 | I8: 0 | J8: 0 | K8: ='رصيد اول'!D8 -> 0
A9: ='رصيد اول'!A9 -> 0 | B9: ='رصيد اول'!B9 -> 0 | C9: =SUMIF('رصيد اول'!$A:$B,'رصيد اول'!A9,'رصيد اول'!C:C) -> 0 | D9: 0 | E9: =SUMIF(الوارد!$D:$D,الرصيد!A9,الوارد!F:F) -> 0 | F9: 0 | G9: =SUMIF(المنصرف!$C$1:$C$10000,A9,المنصرف!E:E) -> 0 | H9: 0 | I9: 0 | J9: 0 | K9: ='رصيد اول'!D9 -> 0
A10: ='رصيد اول'!A10 -> 0 | B10: ='رصيد اول'!B10 -> 0 | C10: =SUMIF('رصيد اول'!$A:$B,'رصيد اول'!A10,'رصيد اول'!C:C) -> 0 | D10: 0 | E10: =SUMIF(الوارد!$D:$D,الرصيد!A10,الوارد!F:F) -> 0 | F10: 0 | G10: =SUMIF(المنصرف!$C$1:$C$10000,A10,المنصرف!E:E) -> 0 | H10: 0 | I10: 0 | J10: 0 | K10: ='رصيد اول'!D10 -> 0
A11: ='رصيد اول'!A11 -> 0 | B11: ='رصيد اول'!B11 -> 0 | C11: =SUMIF('رصيد اول'!$A:$B,'رصيد اول'!A11,'رصيد اول'!C:C) -> 0 | D11: 0 | E11: =SUMIF(الوارد!$D:$D,الرصيد!A11,الوارد!F:F) -> 0 | F11: 0 | G11: =SUMIF(المنصرف!$C$1:$C$10000,A11,المنصرف!E:E) -> 0 | H11: 0 | I11: 0 | J11: 0 | K11: ='رصيد اول'!D11 -> 0
A12: ='رصيد اول'!A12 -> 0 | B12: ='رصيد اول'!B12 -> 0 | C12: =SUMIF('رصيد اول'!$A:$B,'رصيد اول'!A12,'رصيد اول'!C:C) -> 0 | D12: 0 | E12: =SUMIF(الوارد!$D:$D,الرصيد!A12,الوارد!F:F) -> 0 | F12: 0 | G12: =SUMIF(المنصرف!$C$1:$C$10000,A12,المنصرف!E:E) -> 0 | H12: 0 | I12: 0 | J12: 0 | K12: ='رصيد اول'!D12 -> 0
A13: ='رصيد اول'!A13 -> 0 | B13: ='رصيد اول'!B13 -> 0 | C13: =SUMIF('رصيد اول'!$A:$B,'رصيد اول'!A13,'رصيد اول'!C:C) -> 0 | D13: 0 | E13: =SUMIF(الوارد!$D:$D,الرصيد!A13,الوارد!F:F) -> 0 | F13: 0 | G13: =SUMIF(المنصرف!$C$1:$C$10000,A13,المنصرف!E:E) -> 0 | H13: 0 | I13: 0 | J13: 0 | K13: ='رصيد اول'!D13 -> 0
A14: ='رصيد اول'!A14 -> 0 | B14: ='رصيد اول'!B14 -> 0 | C14: =SUMIF('رصيد اول'!$A:$B,'رصيد اول'!A14,'رصيد اول'!C:C) -> 0 | D14: 0 | E14: =SUMIF(الوارد!$D:$D,الرصيد!A14,الوارد!F:F) -> 0 | F14: 0 | G14: =SUMIF(المنصرف!$C$1:$C$10000,A14,المنصرف!E:E) -> 0 | H14: 0 | I14: 0 | J14: 0 | K14: ='رصيد اول'!D14 -> 0
A15: ='رصيد اول'!A15 -> 0 | B15: ='رصيد اول'!B15 -> 0 | C15: =SUMIF('رصيد اول'!$A:$B,'رصيد اول'!A15,'رصيد اول'!C:C) -> 0 | D15: 0 | E15: =SUMIF(الوارد!$D:$D,الرصيد!A15,الوارد!F:F) -> 0 | F15: 0 | G15: =SUMIF(المنصرف!$C$1:$C$10000,A15,المنصرف!E:E) -> 0 | H15: 0 | I15: 0 | J15: 0 | K15: ='رصيد اول'!D15 -> 0
A16: ='رصيد اول'!A16 -> 0 | B16: ='رصيد اول'!B16 -> 0 | C16: =SUMIF('رصيد اول'!$A:$B,'رصيد اول'!A16,'رصيد اول'!C:C) -> 0 | D16: 0 | E16: =SUMIF(الوارد!$D:$D,الرصيد!A16,الوارد!F:F) -> 0 | F16: 0 | G16: =SUMIF(المنصرف!$C$1:$C$10000,A16,المنصرف!E:E) -> 0 | H16: 0 | I16: 0 | J16: 0 | K16: ='رصيد اول'!D16 -> 0
A17: ='رصيد اول'!A17 -> 0 | B17: ='رصيد اول'!B17 -> 0 | C17: =SUMIF('رصيد اول'!$A:$B,'رصيد اول'!A17,'رصيد اول'!C:C) -> 0 | D17: 0 | E17: =SUMIF(الوارد!$D:$D,الرصيد!A17,الوارد!F:F) -> 0 | F17: 0 | G17: =SUMIF(المنصرف!$C$1:$C$10000,A17,المنصرف!E:E) -> 0 | H17: 0 | I17: 0 | J17: 0 | K17: ='رصيد اول'!D17 -> 0
A18: ='رصيد اول'!A18 -> 0 | B18: ='رصيد اول'!B18 -> 0 | C18: =SUMIF('رصيد اول'!$A:$B,'رصيد اول'!A18,'رصيد اول'!C:C) -> 0 | D18: 0 | E18: =SUMIF(الوارد!$D:$D,الرصيد!A18,الوارد!F:F) -> 0 | F18: 0 | G18: =SUMIF(المنصرف!$C$1:$C$10000,A18,المنصرف!E:E) -> 0 | H18: 0 | I18: 0 | J18: 0 | K18: ='رصيد اول'!D18 -> 0
A19: ='رصيد اول'!A19 -> 0 | B19: ='رصيد اول'!B19 -> 0 | C19: =SUMIF('رصيد اول'!$A:$B,'رصيد اول'!A19,'رصيد اول'!C:C) -> 0 | D19: 0 | E19: =SUMIF(الوارد!$D:$D,الرصيد!A19,الوارد!F:F) -> 0 | F19: 0 | G19: =SUMIF(المنصرف!$C$1:$C$10000,A19,المنصرف!E:E) -> 0 | H19: 0 | I19: 0 | J19: 0 | K19: ='رصيد اول'!D19 -> 0
A20: ='رصيد اول'!A20 -> 0 | B20: ='رصيد اول'!B20 -> 0 | C20: =SUMIF('رصيد اول'!$A:$B,'رصيد اول'!A20,'رصيد اول'!C:C) -> 0 | D20: 0 | E20: =SUMIF(الوارد!$D:$D,الرصيد!A20,الوارد!F:F) -> 0 | F20: 0 | G20: =SUMIF(المنصرف!$C$1:$C$10000,A20,المنصرف!E:E) -> 0 | H20: 0 | I20: 0 | J20: 0 | K20: ='رصيد اول'!D20 -> 0
A21: ='رصيد اول'!A21 -> 0 | B21: ='رصيد اول'!B21 -> 0 | C21: =SUMIF('رصيد اول'!$A:$B,'رصيد اول'!A21,'رصيد اول'!C:C) -> 0 | D21: 0 | E21: =SUMIF(الوارد!$D:$D,الرصيد!A21,الوارد!F:F) -> 0 | F21: 0 | G21: =SUMIF(المنصرف!$C$1:$C$10000,A21,المنصرف!E:E) -> 0 | H21: 0 | I21: 0 | J21: 0 | K21: ='رصيد اول'!D21 -> 0
A22: ='رصيد اول'!A22 -> 0 | B22: ='رصيد اول'!B22 -> 0 | C22: =SUMIF('رصيد اول'!$A:$B,'رصيد اول'!A22,'رصيد اول'!C:C) -> 0 | D22: 0 | E22: =SUMIF(الوارد!$D:$D,الرصيد!A22,الوارد!F:F) -> 0 | F22: 0 | G22: =SUMIF(المنصرف!$C$1:$C$10000,A22,المنصرف!E:E) -> 0 | H22: 0 | I22: 0 | J22: 0 | K22: ='رصيد اول'!D22 -> 0
A23: ='رصيد اول'!A23 -> 0 | B23: ='رصيد اول'!B23 -> 0 | C23: =SUMIF('رصيد اول'!$A:$B,'رصيد اول'!A23,'رصيد اول'!C:C) -> 0 | D23: 0 | E23: =SUMIF(الوارد!$D:$D,الرصيد!A23,الوارد!F:F) -> 0 | F23: 0 | G23: =SUMIF(المنصرف!$C$1:$C$10000,A23,المنصرف!E:E) -> 0 | H23: 0 | I23: 0 | J23: 0 | K23: ='رصيد اول'!D23 -> 0
A24: ='رصيد اول'!A24 -> 0 | B24: ='رصيد اول'!B24 -> 0 | C24: =SUMIF('رصيد اول'!$A:$B,'رصيد اول'!A24,'رصيد اول'!C:C) -> 0 | D24: 0 | E24: =SUMIF(الوارد!$D:$D,الرصيد!A24,الوارد!F:F) -> 0 | F24: 0 | G24: =SUMIF(المنصرف!$C$1:$C$10000,A24,المنصرف!E:E) -> 0 | H24: 0 | I24: 0 | J24: 0 | K24: ='رصيد اول'!D24 -> 0
A25: ='رصيد اول'!A25 -> 0 | B25: ='رصيد اول'!B25 -> 0 | C25: =SUMIF('رصيد اول'!$A:$B,'رصيد اول'!A25,'رصيد اول'!C:C) -> 0 | D25: 0 | E25: =SUMIF(الوارد!$D:$D,الرصيد!A25,الوارد!F:F) -> 0 | F25: 0 | G25: =SUMIF(المنصرف!$C$1:$C$10000,A25,المنصرف!E:E) -> 0 | H25: 0 | I25: 0 | J25: 0 | K25: ='رصيد اول'!D25 -> 0
A26: ='رصيد اول'!A26 -> 0 | B26: ='رصيد اول'!B26 -> 0 | C26: =SUMIF('رصيد اول'!$A:$B,'رصيد اول'!A26,'رصيد اول'!C:C) -> 0 | D26: 0 | E26: =SUMIF(الوارد!$D:$D,الرصيد!A26,الوارد!F:F) -> 0 | F26: 0 | G26: =SUMIF(المنصرف!$C$1:$C$10000,A26,المنصرف!E:E) -> 0 | H26: 0 | I26: 0 | J26: 0 | K26: ='رصيد اول'!D26 -> 0
A27: ='رصيد اول'!A27 -> 0 | B27: ='رصيد اول'!B27 -> 0 | C27: =SUMIF('رصيد اول'!$A:$B,'رصيد اول'!A27,'رصيد اول'!C:C) -> 0 | D27: 0 | E27: =SUMIF(الوارد!$D:$D,الرصيد!A27,الوارد!F:F) -> 0 | F27: 0 | G27: =SUMIF(المنصرف!$C$1:$C$10000,A27,المنصرف!E:E) -> 0 | H27: 0 | I27: 0 | J27: 0 | K27: ='رصيد اول'!D27 -> 0
A28: ='رصيد اول'!A28 -> 0 | B28: ='رصيد اول'!B28 -> 0 | C28: =SUMIF('رصيد اول'!$A:$B,'رصيد اول'!A28,'رصيد اول'!C:C) -> 0 | D28: 0 | E28: =SUMIF(الوارد!$D:$D,الرصيد!A28,الوارد!F:F) -> 0 | F28: 0 | G28: =SUMIF(المنصرف!$C$1:$C$10000,A28,المنصرف!E:E) -> 0 | H28: 0 | I28: 0 | J28: 0 | K28: ='رصيد اول'!D28 -> 0
A29: ='رصيد اول'!A29 -> 0 | B29: ='رصيد اول'!B29 -> 0 | C29: =SUMIF('رصيد اول'!$A:$B,'رصيد اول'!A29,'رصيد اول'!C:C) -> 0 | D29: 0 | E29: =SUMIF(الوارد!$D:$D,الرصيد!A29,الوارد!F:F) -> 0 | F29: 0 | G29: =SUMIF(المنصرف!$C$1:$C$10000,A29,المنصرف!E:E) -> 0 | H29: 0 | I29: 0 | J29: 0 | K29: ='رصيد اول'!D29 -> 0
A30: ='رصيد اول'!A30 -> 0 | B30: ='رصيد اول'!B30 -> 0 | C30: =SUMIF('رصيد اول'!$A:$B,'رصيد اول'!A30,'رصيد اول'!C:C) -> 0 | D30: 0 | E30: =SUMIF(الوارد!$D:$D,الرصيد!A30,الوارد!F:F) -> 0 | F30: 0 | G30: =SUMIF(المنصرف!$C$1:$C$10000,A30,المنصرف!E:E) -> 0 | H30: 0 | I30: 0 | J30: 0 | K30: ='رصيد اول'!D30 -> 0
A31: ='رصيد اول'!A31 -> 0 | B31: ='رصيد اول'!B31 -> 0 | C31: =SUMIF('رصيد اول'!$A:$B,'رصيد اول'!A31,'رصيد اول'!C:C) -> 0 | D31: 0 | E31: =SUMIF(الوارد!$D:$D,الرصيد!A31,الوارد!F:F) -> 0 | F31: 0 | G31: =SUMIF(المنصرف!$C$1:$C$10000,A31,المنصرف!E:E) -> 0 | H31: 0 | I31: 0 | J31: 0 | K31: ='رصيد اول'!D31 -> 0
A32: ='رصيد اول'!A32 -> 0 | B32: ='رصيد اول'!B32 -> 0 | C32: =SUMIF('رصيد اول'!$A:$B,'رصيد اول'!A32,'رصيد اول'!C:C) -> 0 | D32: 0 | E32: =SUMIF(الوارد!$D:$D,الرصيد!A32,الوارد!F:F) -> 0 | F32: 0 | G32: =SUMIF(المنصرف!$C$1:$C$10000,A32,المنصرف!E:E) -> 0 | H32: 0 | I32: 0 | J32: 0 | K32: ='رصيد اول'!D32 -> 0
A33: ='رصيد اول'!A33 -> 0 | B33: ='رصيد اول'!B33 -> 0 | C33: =SUMIF('رصيد اول'!$A:$B,'رصيد اول'!A33,'رصيد اول'!C:C) -> 0 | D33: 0 | E33: =SUMIF(الوارد!$D:$D,الرصيد!A33,الوارد!F:F) -> 0 | F33: 0 | G33: =SUMIF(المنصرف!$C$1:$C$10000,A33,المنصرف!E:E) -> 0 | H33: 0 | I33: 0 | J33: 0 | K33: ='رصيد اول'!D33 -> 0
A34: ='رصيد اول'!A34 -> 0 | B34: ='رصيد اول'!B34 -> 0 | C34: =SUMIF('رصيد اول'!$A:$B,'رصيد اول'!A34,'رصيد اول'!C:C) -> 0 | D34: 0 | E34: =SUMIF(الوارد!$D:$D,الرصيد!A34,الوارد!F:F) -> 0 | F34: 0 | G34: =SUMIF(المنصرف!$C$1:$C$10000,A34,المنصرف!E:E) -> 0 | H34: 0 | I34: 0 | J34: 0 | K34: ='رصيد اول'!D34 -> 0
A35: ='رصيد اول'!A35 -> 0 | B35: ='رصيد اول'!B35 -> 0 | C35: =SUMIF('رصيد اول'!$A:$B,'رصيد اول'!A35,'رصيد اول'!C:C) -> 0 | D35: 0 | E35: =SUMIF(الوارد!$D:$D,الرصيد!A35,الوارد!F:F) -> 0 | F35: 0 | G35: =SUMIF(المنصرف!$C$1:$C$10000,A35,المنصرف!E:E) -> 0 | H35: 0 | I35: 0 | J35: 0 | K35: ='رصيد اول'!D35 -> 0
A36: ='رصيد اول'!A36 -> 0 | B36: ='رصيد اول'!B36 -> 0 | C36: =SUMIF('رصيد اول'!$A:$B,'رصيد اول'!A36,'رصيد اول'!C:C) -> 0 | D36: 0 | E36: =SUMIF(الوارد!$D:$D,الرصيد!A36,الوارد!F:F) -> 0 | F36: 0 | G36: =SUMIF(المنصرف!$C$1:$C$10000,A36,المنصرف!E:E) -> 0 | H36: 0 | I36: 0 | J36: 0 | K36: ='رصيد اول'!D36 -> 0
A37: ='رصيد اول'!A37 -> 0 | B37: ='رصيد اول'!B37 -> 0 | C37: =SUMIF('رصيد اول'!$A:$B,'رصيد اول'!A37,'رصيد اول'!C:C) -> 0 | D37: 0 | E37: =SUMIF(الوارد!$D:$D,الرصيد!A37,الوارد!F:F) -> 0 | F37: 0 | G37: =SUMIF(المنصرف!$C$1:$C$10000,A37,المنصرف!E:E) -> 0 | H37: 0 | I37: 0 | J37: 0 | K37: ='رصيد اول'!D37 -> 0
A38: ='رصيد اول'!A38 -> 0 | B38: ='رصيد اول'!B38 -> 0 | C38: =SUMIF('رصيد اول'!$A:$B,'رصيد اول'!A38,'رصيد اول'!C:C) -> 0 | D38: 0 | E38: =SUMIF(الوارد!$D:$D,الرصيد!A38,الوارد!F:F) -> 0 | F38: 0 | G38: =SUMIF(المنصرف!$C$1:$C$10000,A38,المنصرف!E:E) -> 0 | H38: 0 | I38: 0 | J38: 0 | K38: ='رصيد اول'!D38 -> 0
A39: ='رصيد اول'!A39 -> 0 | B39: ='رصيد اول'!B39 -> 0 | C39: =SUMIF('رصيد اول'!$A:$B,'رصيد اول'!A39,'رصيد اول'!C:C) -> 0 | D39: 0 | E39: =SUMIF(الوارد!$D:$D,الرصيد!A39,الوارد!F:F) -> 0 | F39: 0 | G39: =SUMIF(المنصرف!$C$1:$C$10000,A39,المنصرف!E:E) -> 0 | H39: 0 | I39: 0 | J39: 0 | K39: ='رصيد اول'!D39 -> 0
A40: ='رصيد اول'!A40 -> 0 | B40: ='رصيد اول'!B40 -> 0 | C40: =SUMIF('رصيد اول'!$A:$B,'رصيد اول'!A40,'رصيد اول'!C:C) -> 0 | D40: 0 | E40: =SUMIF(الوارد!$D:$D,الرصيد!A40,الوارد!F:F) -> 0 | F40: 0 | G40: =SUMIF(المنصرف!$C$1:$C$10000,A40,المنصرف!E:E) -> 0 | H40: 0 | I40: 0 | J40: 0 | K40: ='رصيد اول'!D40 -> 0
A41: ='رصيد اول'!A41 -> 0 | B41: ='رصيد اول'!B41 -> 0 | C41: =SUMIF('رصيد اول'!$A:$B,'رصيد اول'!A41,'رصيد اول'!C:C) -> 0 | D41: 0 | E41: =SUMIF(الوارد!$D:$D,الرصيد!A41,الوارد!F:F) -> 0 | F41: 0 | G41: =SUMIF(المنصرف!$C$1:$C$10000,A41,المنصرف!E:E) -> 0 | H41: 0 | I41: 0 | J41: 0 | K41: ='رصيد اول'!D41 -> 0
A42: ='رصيد اول'!A42 -> 0 | B42: ='رصيد اول'!B42 -> 0 | C42: =SUMIF('رصيد اول'!$A:$B,'رصيد اول'!A42,'رصيد اول'!C:C) -> 0 | D42: 0 | E42: =SUMIF(الوارد!$D:$D,الرصيد!A42,الوارد!F:F) -> 0 | F42: 0 | G42: =SUMIF(المنصرف!$C$1:$C$10000,A42,المنصرف!E:E) -> 0 | H42: 0 | I42: 0 | J42: 0 | K42: ='رصيد اول'!D42 -> 0
A43: ='رصيد اول'!A43 -> 0 | B43: ='رصيد اول'!B43 -> 0 | C43: =SUMIF('رصيد اول'!$A:$B,'رصيد اول'!A43,'رصيد اول'!C:C) -> 0 | D43: 0 | E43: =SUMIF(الوارد!$D:$D,الرصيد!A43,الوارد!F:F) -> 0 | F43: 0 | G43: =SUMIF(المنصرف!$C$1:$C$10000,A43,المنصرف!E:E) -> 0 | H43: 0 | I43: 0 | J43: 0 | K43: ='رصيد اول'!D43 -> 0
A44: ='رصيد اول'!A44 -> 0 | B44: ='رصيد اول'!B44 -> 0 | C44: =SUMIF('رصيد اول'!$A:$B,'رصيد اول'!A44,'رصيد اول'!C:C) -> 0 | D44: 0 | E44: =SUMIF(الوارد!$D:$D,الرصيد!A44,الوارد!F:F) -> 0 | F44: 0 | G44: =SUMIF(المنصرف!$C$1:$C$10000,A44,المنصرف!E:E) -> 0 | H44: 0 | I44: 0 | J44: 0 | K44: ='رصيد اول'!D44 -> 0
A45: ='رصيد اول'!A45 -> 0 | B45: ='رصيد اول'!B45 -> 0 | C45: =SUMIF('رصيد اول'!$A:$B,'رصيد اول'!A45,'رصيد اول'!C:C) -> 0 | D45: 0 | E45: =SUMIF(الوارد!$D:$D,الرصيد!A45,الوارد!F:F) -> 0 | F45: 0 | G45: =SUMIF(المنصرف!$C$1:$C$10000,A45,المنصرف!E:E) -> 0 | H45: 0 | I45: 0 | J45: 0 | K45: ='رصيد اول'!D45 -> 0
A46: ='رصيد اول'!A46 -> 0 | B46: ='رصيد اول'!B46 -> 0 | C46: =SUMIF('رصيد اول'!$A:$B,'رصيد اول'!A46,'رصيد اول'!C:C) -> 0 | D46: 0 | E46: =SUMIF(الوارد!$D:$D,الرصيد!A46,الوارد!F:F) -> 0 | F46: 0 | G46: =SUMIF(المنصرف!$C$1:$C$10000,A46,المنصرف!E:E) -> 0 | H46: 0 | I46: 0 | J46: 0 | K46: ='رصيد اول'!D46 -> 0
A47: ='رصيد اول'!A47 -> 0 | B47: ='رصيد اول'!B47 -> 0 | C47: =SUMIF('رصيد اول'!$A:$B,'رصيد اول'!A47,'رصيد اول'!C:C) -> 0 | D47: 0 | E47: =SUMIF(الوارد!$D:$D,الرصيد!A47,الوارد!F:F) -> 0 | F47: 0 | G47: =SUMIF(المنصرف!$C$1:$C$10000,A47,المنصرف!E:E) -> 0 | H47: 0 | I47: 0 | J47: 0 | K47: ='رصيد اول'!D47 -> 0
A48: ='رصيد اول'!A48 -> 0 | B48: ='رصيد اول'!B48 -> 0 | C48: =SUMIF('رصيد اول'!$A:$B,'رصيد اول'!A48,'رصيد اول'!C:C) -> 0 | D48: 0 | E48: =SUMIF(الوارد!$D:$D,الرصيد!A48,الوارد!F:F) -> 0 | F48: 0 | G48: =SUMIF(المنصرف!$C$1:$C$10000,A48,المنصرف!E:E) -> 0 | H48: 0 | I48: 0 | J48: 0 | K48: ='رصيد اول'!D48 -> 0
A49: ='رصيد اول'!A49 -> 0 | B49: ='رصيد اول'!B49 -> 0 | C49: =SUMIF('رصيد اول'!$A:$B,'رصيد اول'!A49,'رصيد اول'!C:C) -> 0 | D49: 0 | E49: =SUMIF(الوارد!$D:$D,الرصيد!A49,الوارد!F:F) -> 0 | F49: 0 | G49: =SUMIF(المنصرف!$C$1:$C$10000,A49,المنصرف!E:E) -> 0 | H49: 0 | I49: 0 | J49: 0 | K49: ='رصيد اول'!D49 -> 0
A50: ='رصيد اول'!A50 -> 0 | B50: ='رصيد اول'!B50 -> 0 | C50: =SUMIF('رصيد اول'!$A:$B,'رصيد اول'!A50,'رصيد اول'!C:C) -> 0 | D50: 0 | E50: =SUMIF(الوارد!$D:$D,الرصيد!A50,الوارد!F:F) -> 0 | F50: 0 | G50: =SUMIF(المنصرف!$C$1:$C$10000,A50,المنصرف!E:E) -> 0 | H50: 0 | I50: 0 | J50: 0 | K50: ='رصيد اول'!D50 -> 0
A51: ='رصيد اول'!A51 -> 0 | B51: ='رصيد اول'!B51 -> 0 | C51: =SUMIF('رصيد اول'!$A:$B,'رصيد اول'!A51,'رصيد اول'!C:C) -> 0 | D51: 0 | E51: =SUMIF(الوارد!$D:$D,الرصيد!A51,الوارد!F:F) -> 0 | F51: 0 | G51: =SUMIF(المنصرف!$C$1:$C$10000,A51,المنصرف!E:E) -> 0 | H51: 0 | I51: 0 | J51: 0 | K51: ='رصيد اول'!D51 -> 0
A52: ='رصيد اول'!A52 -> 0 | B52: ='رصيد اول'!B52 -> 0 | C52: =SUMIF('رصيد اول'!$A:$B,'رصيد اول'!A52,'رصيد اول'!C:C) -> 0 | D52: 0 | E52: =SUMIF(الوارد!$D:$D,الرصيد!A52,الوارد!F:F) -> 0 | F52: 0 | G52: =SUMIF(المنصرف!$C$1:$C$10000,A52,المنصرف!E:E) -> 0 | H52: 0 | I52: 0 | J52: 0 | K52: ='رصيد اول'!D52 -> 0
A53: ='رصيد اول'!A53 -> 0 | B53: ='رصيد اول'!B53 -> 0 | C53: =SUMIF('رصيد اول'!$A:$B,'رصيد اول'!A53,'رصيد اول'!C:C) -> 0 | D53: 0 | E53: =SUMIF(الوارد!$D:$D,الرصيد!A53,الوارد!F:F) -> 0 | F53: 0 | G53: =SUMIF(المنصرف!$C$1:$C$10000,A53,المنصرف!E:E) -> 0 | H53: 0 | I53: 0 | J53: 0 | K53: ='رصيد اول'!D53 -> 0
A54: ='رصيد اول'!A54 -> 0 | B54: ='رصيد اول'!B54 -> 0 | C54: =SUMIF('رصيد اول'!$A:$B,'رصيد اول'!A54,'رصيد اول'!C:C) -> 0 | D54: 0 | E54: =SUMIF(الوارد!$D:$D,الرصيد!A54,الوارد!F:F) -> 0 | F54: 0 | G54: =SUMIF(المنصرف!$C$1:$C$10000,A54,المنصرف!E:E) -> 0 | H54: 0 | I54: 0 | J54: 0 | K54: ='رصيد اول'!D54 -> 0
A55: ='رصيد اول'!A55 -> 0 | B55: ='رصيد اول'!B55 -> 0 | C55: =SUMIF('رصيد اول'!$A:$B,'رصيد اول'!A55,'رصيد اول'!C:C) -> 0 | D55: 0 | E55: =SUMIF(الوارد!$D:$D,الرصيد!A55,الوارد!F:F) -> 0 | F55: 0 | G55: =SUMIF(المنصرف!$C$1:$C$10000,A55,المنصرف!E:E) -> 0 | H55: 0 | I55: 0 | J55: 0 | K55: ='رصيد اول'!D55 -> 0
A56: ='رصيد اول'!A56 -> 0 | B56: ='رصيد اول'!B56 -> 0 | C56: =SUMIF('رصيد اول'!$A:$B,'رصيد اول'!A56,'رصيد اول'!C:C) -> 0 | D56: 0 | E56: =SUMIF(الوارد!$D:$D,الرصيد!A56,الوارد!F:F) -> 0 | F56: 0 | G56: =SUMIF(المنصرف!$C$1:$C$10000,A56,المنصرف!E:E) -> 0 | H56: 0 | I56: 0 | J56: 0 | K56: ='رصيد اول'!D56 -> 0
A57: ='رصيد اول'!A57 -> 0 | B57: ='رصيد اول'!B57 -> 0 | C57: =SUMIF('رصيد اول'!$A:$B,'رصيد اول'!A57,'رصيد اول'!C:C) -> 0 | D57: 0 | E57: =SUMIF(الوارد!$D:$D,الرصيد!A57,الوارد!F:F) -> 0 | F57: 0 | G57: =SUMIF(المنصرف!$C$1:$C$10000,A57,المنصرف!E:E) -> 0 | H57: 0 | I57: 0 | J57: 0 | K57: ='رصيد اول'!D57 -> 0
A58: ='رصيد اول'!A58 -> 0 | B58: ='رصيد اول'!B58 -> 0 | C58: =SUMIF('رصيد اول'!$A:$B,'رصيد اول'!A58,'رصيد اول'!C:C) -> 0 | D58: 0 | E58: =SUMIF(الوارد!$D:$D,الرصيد!A58,الوارد!F:F) -> 0 | F58: 0 | G58: =SUMIF(المنصرف!$C$1:$C$10000,A58,المنصرف!E:E) -> 0 | H58: 0 | I58: 0 | J58: 0 | K58: ='رصيد اول'!D58 -> 0
A59: ='رصيد اول'!A59 -> 0 | B59: ='رصيد اول'!B59 -> 0 | C59: =SUMIF('رصيد اول'!$A:$B,'رصيد اول'!A59,'رصيد اول'!C:C) -> 0 | D59: 0 | E59: =SUMIF(الوارد!$D:$D,الرصيد!A59,الوارد!F:F) -> 0 | F59: 0 | G59: =SUMIF(المنصرف!$C$1:$C$10000,A59,المنصرف!E:E) -> 0 | H59: 0 | I59: 0 | J59: 0 | K59: ='رصيد اول'!D59 -> 0
A60: ='رصيد اول'!A60 -> 0 | B60: ='رصيد اول'!B60 -> 0 | C60: =SUMIF('رصيد اول'!$A:$B,'رصيد اول'!A60,'رصيد اول'!C:C) -> 0 | D60: 0 | E60: =SUMIF(الوارد!$D:$D,الرصيد!A60,الوارد!F:F) -> 0 | F60: 0 | G60: =SUMIF(المنصرف!$C$1:$C$10000,A60,المنصرف!E:E) -> 0 | H60: 0 | I60: 0 | J60: 0 | K60: ='رصيد اول'!D60 -> 0
A61: ='رصيد اول'!A61 -> 0 | B61: ='رصيد اول'!B61 -> 0 | C61: =SUMIF('رصيد اول'!$A:$B,'رصيد اول'!A61,'رصيد اول'!C:C) -> 0 | D61: 0 | E61: =SUMIF(الوارد!$D:$D,الرصيد!A61,الوارد!F:F) -> 0 | F61: 0 | G61: =SUMIF(المنصرف!$C$1:$C$10000,A61,المنصرف!E:E) -> 0 | H61: 0 | I61: 0 | J61: 0 | K61: ='رصيد اول'!D61 -> 0
A62: ='رصيد اول'!A62 -> 0 | B62: ='رصيد اول'!B62 -> 0 | C62: =SUMIF('رصيد اول'!$A:$B,'رصيد اول'!A62,'رصيد اول'!C:C) -> 0 | D62: 0 | E62: =SUMIF(الوارد!$D:$D,الرصيد!A62,الوارد!F:F) -> 0 | F62: 0 | G62: =SUMIF(المنصرف!$C$1:$C$10000,A62,المنصرف!E:E) -> 0 | H62: 0 | I62: 0 | J62: 0 | K62: ='رصيد اول'!D62 -> 0
A63: ='رصيد اول'!A63 -> 0 | B63: ='رصيد اول'!B63 -> 0 | C63: =SUMIF('رصيد اول'!$A:$B,'رصيد اول'!A63,'رصيد اول'!C:C) -> 0 | D63: 0 | E63: =SUMIF(الوارد!$D:$D,الرصيد!A63,الوارد!F:F) -> 0 | F63: 0 | G63: =SUMIF(المنصرف!$C$1:$C$10000,A63,المنصرف!E:E) -> 0 | H63: 0 | I63: 0 | J63: 0 | K63: ='رصيد اول'!D63 -> 0
A64: ='رصيد اول'!A64 -> 0 | B64: ='رصيد اول'!B64 -> 0 | C64: =SUMIF('رصيد اول'!$A:$B,'رصيد اول'!A64,'رصيد اول'!C:C) -> 0 | D64: 0 | E64: =SUMIF(الوارد!$D:$D,الرصيد!A64,الوارد!F:F) -> 0 | F64: 0 | G64: =SUMIF(المنصرف!$C$1:$C$10000,A64,المنصرف!E:E) -> 0 | H64: 0 | I64: 0 | J64: 0 | K64: ='رصيد اول'!D64 -> 0
A65: ='رصيد اول'!A65 -> 0 | B65: ='رصيد اول'!B65 -> 0 | C65: =SUMIF('رصيد اول'!$A:$B,'رصيد اول'!A65,'رصيد اول'!C:C) -> 0 | D65: 0 | E65: =SUMIF(الوارد!$D:$D,الرصيد!A65,الوارد!F:F) -> 0 | F65: 0 | G65: =SUMIF(المنصرف!$C$1:$C$10000,A65,المنصرف!E:E) -> 0 | H65: 0 | I65: 0 | J65: 0 | K65: ='رصيد اول'!D65 -> 0
A66: ='رصيد اول'!A66 -> 0 | B66: ='رصيد اول'!B66 -> 0 | C66: =SUMIF('رصيد اول'!$A:$B,'رصيد اول'!A66,'رصيد اول'!C:C) -> 0 | D66: 0 | E66: =SUMIF(الوارد!$D:$D,الرصيد!A66,الوارد!F:F) -> 0 | F66: 0 | G66: =SUMIF(المنصرف!$C$1:$C$10000,A66,المنصرف!E:E) -> 0 | H66: 0 | I66: 0 | J66: 0 | K66: ='رصيد اول'!D66 -> 0
A67: ='رصيد اول'!A67 -> 0 | B67: ='رصيد اول'!B67 -> 0 | C67: =SUMIF('رصيد اول'!$A:$B,'رصيد اول'!A67,'رصيد اول'!C:C) -> 0 | D67: 0 | E67: =SUMIF(الوارد!$D:$D,الرصيد!A67,الوارد!F:F) -> 0 | F67: 0 | G67: =SUMIF(المنصرف!$C$1:$C$10000,A67,المنصرف!E:E) -> 0 | H67: 0 | I67: =C67+E67-G67 -> 0 | J67: 0 | K67: ='رصيد اول'!D67 -> 0
A68: ='رصيد اول'!A68 -> 0 | B68: ='رصيد اول'!B68 -> 0 | C68: =SUMIF('رصيد اول'!$A:$B,'رصيد اول'!A68,'رصيد اول'!C:C) -> 0 | D68: =C68*K68 -> 0 | E68: =SUMIF(الوارد!$D:$D,الرصيد!A68,الوارد!F:F) -> 0 | F68: =+E68*K68 -> 0 | G68: =SUMIF(المنصرف!$C$1:$C$10000,A68,المنصرف!E:E) -> 0 | H68: =G68*K68 -> 0 | I68: 0 | J68: =I68*K68 -> 0 | K68: ='رصيد اول'!D68 -> 0
A69: ='رصيد اول'!A69 -> 0 | B69: ='رصيد اول'!B69 -> 0 | C69: =SUMIF('رصيد اول'!$A:$B,'رصيد اول'!A69,'رصيد اول'!C:C) -> 0 | D69: 0 | E69: =SUMIF(الوارد!$D:$D,الرصيد!A69,الوارد!F:F) -> 0 | F69: 0 | G69: =SUMIF(المنصرف!$C$1:$C$10000,A69,المنصرف!E:E) -> 0 | H69: 0 | I69: 0 | J69: 0 | K69: ='رصيد اول'!D69 -> 0
A70: ='رصيد اول'!A70 -> 0 | B70: ='رصيد اول'!B70 -> 0 | C70: =SUMIF('رصيد اول'!$A:$B,'رصيد اول'!A70,'رصيد اول'!C:C) -> 0 | D70: 0 | E70: =SUMIF(الوارد!$D:$D,الرصيد!A70,الوارد!F:F) -> 0 | F70: 0 | G70: =SUMIF(المنصرف!$C$1:$C$10000,A70,المنصرف!E:E) -> 0 | H70: 0 | I70: 0 | J70: 0 | K70: ='رصيد اول'!D70 -> 0
A71: ='رصيد اول'!A71 -> 0 | B71: ='رصيد اول'!B71 -> 0 | C71: =SUMIF('رصيد اول'!$A:$B,'رصيد اول'!A71,'رصيد اول'!C:C) -> 0 | D71: 0 | E71: =SUMIF(الوارد!$D:$D,الرصيد!A71,الوارد!F:F) -> 0 | F71: 0 | G71: =SUMIF(المنصرف!$C$1:$C$10000,A71,المنصرف!E:E) -> 0 | H71: 0 | I71: 0 | J71: 0 | K71: ='رصيد اول'!D71 -> 0
A72: ='رصيد اول'!A72 -> 0 | B72: ='رصيد اول'!B72 -> 0 | C72: =SUMIF('رصيد اول'!$A:$B,'رصيد اول'!A72,'رصيد اول'!C:C) -> 0 | D72: 0 | E72: =SUMIF(الوارد!$D:$D,الرصيد!A72,الوارد!F:F) -> 0 | F72: 0 | G72: =SUMIF(المنصرف!$C$1:$C$10000,A72,المنصرف!E:E) -> 0 | H72: 0 | I72: 0 | J72: 0 | K72: ='رصيد اول'!D72 -> 0
A73: ='رصيد اول'!A73 -> 0 | B73: ='رصيد اول'!B73 -> 0 | C73: =SUMIF('رصيد اول'!$A:$B,'رصيد اول'!A73,'رصيد اول'!C:C) -> 0 | D73: 0 | E73: =SUMIF(الوارد!$D:$D,الرصيد!A73,الوارد!F:F) -> 0 | F73: 0 | G73: =SUMIF(المنصرف!$C$1:$C$10000,A73,المنصرف!E:E) -> 0 | H73: 0 | I73: 0 | J73: 0 | K73: ='رصيد اول'!D73 -> 0
A74: ='رصيد اول'!A74 -> 0 | B74: ='رصيد اول'!B74 -> 0 | C74: =SUMIF('رصيد اول'!$A:$B,'رصيد اول'!A74,'رصيد اول'!C:C) -> 0 | D74: 0 | E74: =SUMIF(الوارد!$D:$D,الرصيد!A74,الوارد!F:F) -> 0 | F74: 0 | G74: =SUMIF(المنصرف!$C$1:$C$10000,A74,المنصرف!E:E) -> 0 | H74: 0 | I74: 0 | J74: 0 | K74: ='رصيد اول'!D74 -> 0
A75: ='رصيد اول'!A75 -> 0 | B75: ='رصيد اول'!B75 -> 0 | C75: =SUMIF('رصيد اول'!$A:$B,'رصيد اول'!A75,'رصيد اول'!C:C) -> 0 | D75: 0 | E75: =SUMIF(الوارد!$D:$D,الرصيد!A75,الوارد!F:F) -> 0 | F75: 0 | G75: =SUMIF(المنصرف!$C$1:$C$10000,A75,المنصرف!E:E) -> 0 | H75: 0 | I75: 0 | J75: 0 | K75: ='رصيد اول'!D75 -> 0
A76: ='رصيد اول'!A76 -> 0 | B76: ='رصيد اول'!B76 -> 0 | C76: =SUMIF('رصيد اول'!$A:$B,'رصيد اول'!A76,'رصيد اول'!C:C) -> 0 | D76: 0 | E76: =SUMIF(الوارد!$D:$D,الرصيد!A76,الوارد!F:F) -> 0 | F76: 0 | G76: =SUMIF(المنصرف!$C$1:$C$10000,A76,المنصرف!E:E) -> 0 | H76: 0 | I76: 0 | J76: 0 | K76: ='رصيد اول'!D76 -> 0
A77: ='رصيد اول'!A77 -> 0 | B77: ='رصيد اول'!B77 -> 0 | C77: =SUMIF('رصيد اول'!$A:$B,'رصيد اول'!A77,'رصيد اول'!C:C) -> 0 | D77: 0 | E77: =SUMIF(الوارد!$D:$D,الرصيد!A77,الوارد!F:F) -> 0 | F77: 0 | G77: =SUMIF(المنصرف!$C$1:$C$10000,A77,المنصرف!E:E) -> 0 | H77: 0 | I77: 0 | J77: 0 | K77: ='رصيد اول'!D77 -> 0
A78: ='رصيد اول'!A78 -> 0 | B78: ='رصيد اول'!B78 -> 0 | C78: =SUMIF('رصيد اول'!$A:$B,'رصيد اول'!A78,'رصيد اول'!C:C) -> 0 | D78: 0 | E78: =SUMIF(الوارد!$D:$D,الرصيد!A78,الوارد!F:F) -> 0 | F78: 0 | G78: =SUMIF(المنصرف!$C$1:$C$10000,A78,المنصرف!E:E) -> 0 | H78: 0 | I78: 0 | J78: 0 | K78: ='رصيد اول'!D78 -> 0
A79: ='رصيد اول'!A79 -> 0 | B79: ='رصيد اول'!B79 -> 0 | C79: =SUMIF('رصيد اول'!$A:$B,'رصيد اول'!A79,'رصيد اول'!C:C) -> 0 | D79: 0 | E79: =SUMIF(الوارد!$D:$D,الرصيد!A79,الوارد!F:F) -> 0 | F79: 0 | G79: =SUMIF(المنصرف!$C$1:$C$10000,A79,المنصرف!E:E) -> 0 | H79: 0 | I79: 0 | J79: 0 | K79: ='رصيد اول'!D79 -> 0
A80: ='رصيد اول'!A80 -> 0 | B80: ='رصيد اول'!B80 -> 0 | C80: =SUMIF('رصيد اول'!$A:$B,'رصيد اول'!A80,'رصيد اول'!C:C) -> 0 | D80: 0 | E80: =SUMIF(الوارد!$D:$D,الرصيد!A80,الوارد!F:F) -> 0 | F80: 0 | G80: =SUMIF(المنصرف!$C$1:$C$10000,A80,المنصرف!E:E) -> 0 | H80: 0 | I80: 0 | J80: 0 | K80: ='رصيد اول'!D80 -> 0
A81: ='رصيد اول'!A81 -> 0 | B81: ='رصيد اول'!B81 -> 0 | C81: =SUMIF('رصيد اول'!$A:$B,'رصيد اول'!A81,'رصيد اول'!C:C) -> 0 | D81: 0 | E81: =SUMIF(الوارد!$D:$D,الرصيد!A81,الوارد!F:F) -> 0 | F81: 0 | G81: =SUMIF(المنصرف!$C$1:$C$10000,A81,المنصرف!E:E) -> 0 | H81: 0 | I81: 0 | J81: 0 | K81: ='رصيد اول'!D81 -> 0
A82: ='رصيد اول'!A82 -> 0 | B82: ='رصيد اول'!B82 -> 0 | C82: =SUMIF('رصيد اول'!$A:$B,'رصيد اول'!A82,'رصيد اول'!C:C) -> 0 | D82: 0 | E82: =SUMIF(الوارد!$D:$D,الرصيد!A82,الوارد!F:F) -> 0 | F82: 0 | G82: =SUMIF(المنصرف!$C$1:$C$10000,A82,المنصرف!E:E) -> 0 | H82: 0 | I82: 0 | J82: 0 | K82: ='رصيد اول'!D82 -> 0
A83: ='رصيد اول'!A83 -> 0 | B83: ='رصيد اول'!B83 -> 0 | C83: =SUMIF('رصيد اول'!$A:$B,'رصيد اول'!A83,'رصيد اول'!C:C) -> 0 | D83: 0 | E83: =SUMIF(الوارد!$D:$D,الرصيد!A83,الوارد!F:F) -> 0 | F83: 0 | G83: =SUMIF(المنصرف!$C$1:$C$10000,A83,المنصرف!E:E) -> 0 | H83: 0 | I83: 0 | J83: 0 | K83: ='رصيد اول'!D83 -> 0
A84: ='رصيد اول'!A84 -> 0 | B84: ='رصيد اول'!B84 -> 0 | C84: =SUMIF('رصيد اول'!$A:$B,'رصيد اول'!A84,'رصيد اول'!C:C) -> 0 | D84: 0 | E84: =SUMIF(الوارد!$D:$D,الرصيد!A84,الوارد!F:F) -> 0 | F84: 0 | G84: =SUMIF(المنصرف!$C$1:$C$10000,A84,المنصرف!E:E) -> 0 | H84: 0 | I84: 0 | J84: 0 | K84: ='رصيد اول'!D84 -> 0
A85: ='رصيد اول'!A85 -> 0 | B85: ='رصيد اول'!B85 -> 0 | C85: =SUMIF('رصيد اول'!$A:$B,'رصيد اول'!A85,'رصيد اول'!C:C) -> 0 | D85: 0 | E85: =SUMIF(الوارد!$D:$D,الرصيد!A85,الوارد!F:F) -> 0 | F85: 0 | G85: =SUMIF(المنصرف!$C$1:$C$10000,A85,المنصرف!E:E) -> 0 | H85: 0 | I85: 0 | J85: 0 | K85: ='رصيد اول'!D85 -> 0
A86: ='رصيد اول'!A86 -> 0 | B86: ='رصيد اول'!B86 -> 0 | C86: =SUMIF('رصيد اول'!$A:$B,'رصيد اول'!A86,'رصيد اول'!C:C) -> 0 | D86: 0 | E86: =SUMIF(الوارد!$D:$D,الرصيد!A86,الوارد!F:F) -> 0 | F86: 0 | G86: =SUMIF(المنصرف!$C$1:$C$10000,A86,المنصرف!E:E) -> 0 | H86: 0 | I86: 0 | J86: 0 | K86: ='رصيد اول'!D86 -> 0
A87: ='رصيد اول'!A87 -> 0 | B87: ='رصيد اول'!B87 -> 0 | C87: =SUMIF('رصيد اول'!$A:$B,'رصيد اول'!A87,'رصيد اول'!C:C) -> 0 | D87: 0 | E87: =SUMIF(الوارد!$D:$D,الرصيد!A87,الوارد!F:F) -> 0 | F87: 0 | G87: =SUMIF(المنصرف!$C$1:$C$10000,A87,المنصرف!E:E) -> 0 | H87: 0 | I87: 0 | J87: 0 | K87: ='رصيد اول'!D87 -> 0
A88: ='رصيد اول'!A88 -> 0 | B88: ='رصيد اول'!B88 -> 0 | C88: =SUMIF('رصيد اول'!$A:$B,'رصيد اول'!A88,'رصيد اول'!C:C) -> 0 | D88: 0 | E88: =SUMIF(الوارد!$D:$D,الرصيد!A88,الوارد!F:F) -> 0 | F88: 0 | G88: =SUMIF(المنصرف!$C$1:$C$10000,A88,المنصرف!E:E) -> 0 | H88: 0 | I88: 0 | J88: 0 | K88: ='رصيد اول'!D88 -> 0
A89: ='رصيد اول'!A89 -> 0 | B89: ='رصيد اول'!B89 -> 0 | C89: =SUMIF('رصيد اول'!$A:$B,'رصيد اول'!A89,'رصيد اول'!C:C) -> 0 | D89: 0 | E89: =SUMIF(الوارد!$D:$D,الرصيد!A89,الوارد!F:F) -> 0 | F89: 0 | G89: =SUMIF(المنصرف!$C$1:$C$10000,A89,المنصرف!E:E) -> 0 | H89: 0 | I89: 0 | J89: 0 | K89: ='رصيد اول'!D89 -> 0
A90: ='رصيد اول'!A90 -> 0 | B90: ='رصيد اول'!B90 -> 0 | C90: =SUMIF('رصيد اول'!$A:$B,'رصيد اول'!A90,'رصيد اول'!C:C) -> 0 | D90: 0 | E90: =SUMIF(الوارد!$D:$D,الرصيد!A90,الوارد!F:F) -> 0 | F90: 0 | G90: =SUMIF(المنصرف!$C$1:$C$10000,A90,المنصرف!E:E) -> 0 | H90: 0 | I90: 0 | J90: 0 | K90: ='رصيد اول'!D90 -> 0
A91: ='رصيد اول'!A91 -> 0 | B91: ='رصيد اول'!B91 -> 0 | C91: =SUMIF('رصيد اول'!$A:$B,'رصيد اول'!A91,'رصيد اول'!C:C) -> 0 | D91: 0 | E91: =SUMIF(الوارد!$D:$D,الرصيد!A91,الوارد!F:F) -> 0 | F91: 0 | G91: =SUMIF(المنصرف!$C$1:$C$10000,A91,المنصرف!E:E) -> 0 | H91: 0 | I91: 0 | J91: 0 | K91: ='رصيد اول'!D91 -> 0
A92: ='رصيد اول'!A92 -> 0 | B92: ='رصيد اول'!B92 -> 0 | C92: =SUMIF('رصيد اول'!$A:$B,'رصيد اول'!A92,'رصيد اول'!C:C) -> 0 | D92: 0 | E92: =SUMIF(الوارد!$D:$D,الرصيد!A92,الوارد!F:F) -> 0 | F92: 0 | G92: =SUMIF(المنصرف!$C$1:$C$10000,A92,المنصرف!E:E) -> 0 | H92: 0 | I92: 0 | J92: 0 | K92: ='رصيد اول'!D92 -> 0
A93: ='رصيد اول'!A93 -> 0 | B93: ='رصيد اول'!B93 -> 0 | C93: =SUMIF('رصيد اول'!$A:$B,'رصيد اول'!A93,'رصيد اول'!C:C) -> 0 | D93: 0 | E93: =SUMIF(الوارد!$D:$D,الرصيد!A93,الوارد!F:F) -> 0 | F93: 0 | G93: =SUMIF(المنصرف!$C$1:$C$10000,A93,المنصرف!E:E) -> 0 | H93: 0 | I93: 0 | J93: 0 | K93: ='رصيد اول'!D93 -> 0
A94: ='رصيد اول'!A94 -> 0 | B94: ='رصيد اول'!B94 -> 0 | C94: =SUMIF('رصيد اول'!$A:$B,'رصيد اول'!A94,'رصيد اول'!C:C) -> 0 | D94: 0 | E94: =SUMIF(الوارد!$D:$D,الرصيد!A94,الوارد!F:F) -> 0 | F94: 0 | G94: =SUMIF(المنصرف!$C$1:$C$10000,A94,المنصرف!E:E) -> 0 | H94: 0 | I94: 0 | J94: 0 | K94: ='رصيد اول'!D94 -> 0
A95: ='رصيد اول'!A95 -> 0 | B95: ='رصيد اول'!B95 -> 0 | C95: =SUMIF('رصيد اول'!$A:$B,'رصيد اول'!A95,'رصيد اول'!C:C) -> 0 | D95: 0 | E95: =SUMIF(الوارد!$D:$D,الرصيد!A95,الوارد!F:F) -> 0 | F95: 0 | G95: =SUMIF(المنصرف!$C$1:$C$10000,A95,المنصرف!E:E) -> 0 | H95: 0 | I95: 0 | J95: 0 | K95: ='رصيد اول'!D95 -> 0
A96: ='رصيد اول'!A96 -> 0 | B96: ='رصيد اول'!B96 -> 0 | C96: =SUMIF('رصيد اول'!$A:$B,'رصيد اول'!A96,'رصيد اول'!C:C) -> 0 | D96: 0 | E96: =SUMIF(الوارد!$D:$D,الرصيد!A96,الوارد!F:F) -> 0 | F96: 0 | G96: =SUMIF(المنصرف!$C$1:$C$10000,A96,المنصرف!E:E) -> 0 | H96: 0 | I96: 0 | J96: 0 | K96: ='رصيد اول'!D96 -> 0
A97: ='رصيد اول'!A97 -> 0 | B97: ='رصيد اول'!B97 -> 0 | C97: =SUMIF('رصيد اول'!$A:$B,'رصيد اول'!A97,'رصيد اول'!C:C) -> 0 | D97: 0 | E97: =SUMIF(الوارد!$D:$D,الرصيد!A97,الوارد!F:F) -> 0 | F97: 0 | G97: =SUMIF(المنصرف!$C$1:$C$10000,A97,المنصرف!E:E) -> 0 | H97: 0 | I97: 0 | J97: 0 | K97: ='رصيد اول'!D97 -> 0
A98: ='رصيد اول'!A98 -> 0 | B98: ='رصيد اول'!B98 -> 0 | C98: =SUMIF('رصيد اول'!$A:$B,'رصيد اول'!A98,'رصيد اول'!C:C) -> 0 | D98: 0 | E98: =SUMIF(الوارد!$D:$D,الرصيد!A98,الوارد!F:F) -> 0 | F98: 0 | G98: =SUMIF(المنصرف!$C$1:$C$10000,A98,المنصرف!E:E) -> 0 | H98: 0 | I98: 0 | J98: 0 | K98: ='رصيد اول'!D98 -> 0
A99: ='رصيد اول'!A99 -> 0 | B99: ='رصيد اول'!B99 -> 0 | C99: =SUMIF('رصيد اول'!$A:$B,'رصيد اول'!A99,'رصيد اول'!C:C) -> 0 | D99: 0 | E99: =SUMIF(الوارد!$D:$D,الرصيد!A99,الوارد!F:F) -> 0 | F99: 0 | G99: =SUMIF(المنصرف!$C$1:$C$10000,A99,المنصرف!E:E) -> 0 | H99: 0 | I99: 0 | J99: 0 | K99: ='رصيد اول'!D99 -> 0
A100: ='رصيد اول'!A100 -> 0 | B100: ='رصيد اول'!B100 -> 0 | C100: =SUMIF('رصيد اول'!$A:$B,'رصيد اول'!A100,'رصيد اول'!C:C) -> 0 | D100: 0 | E100: =SUMIF(الوارد!$D:$D,الرصيد!A100,الوارد!F:F) -> 0 | F100: 0 | G100: =SUMIF(المنصرف!$C$1:$C$10000,A100,المنصرف!E:E) -> 0 | H100: 0 | I100: 0 | J100: 0 | K100: ='رصيد اول'!D100 -> 0
A101: ='رصيد اول'!A101 -> 0 | B101: ='رصيد اول'!B101 -> 0 | C101: =SUMIF('رصيد اول'!$A:$B,'رصيد اول'!A101,'رصيد اول'!C:C) -> 0 | D101: 0 | E101: =SUMIF(الوارد!$D:$D,الرصيد!A101,الوارد!F:F) -> 0 | F101: 0 | G101: =SUMIF(المنصرف!$C$1:$C$10000,A101,المنصرف!E:E) -> 0 | H101: 0 | I101: 0 | J101: 0 | K101: ='رصيد اول'!D101 -> 0
A102: ='رصيد اول'!A102 -> 0 | B102: ='رصيد اول'!B102 -> 0 | C102: =SUMIF('رصيد اول'!$A:$B,'رصيد اول'!A102,'رصيد اول'!C:C) -> 0 | D102: 0 | E102: =SUMIF(الوارد!$D:$D,الرصيد!A102,الوارد!F:F) -> 0 | F102: 0 | G102: =SUMIF(المنصرف!$C$1:$C$10000,A102,المنصرف!E:E) -> 0 | H102: 0 | I102: 0 | J102: 0 | K102: ='رصيد اول'!D102 -> 0
A103: ='رصيد اول'!A103 -> 0 | B103: ='رصيد اول'!B103 -> 0 | C103: =SUMIF('رصيد اول'!$A:$B,'رصيد اول'!A103,'رصيد اول'!C:C) -> 0 | D103: 0 | E103: =SUMIF(الوارد!$D:$D,الرصيد!A103,الوارد!F:F) -> 0 | F103: 0 | G103: =SUMIF(المنصرف!$C$1:$C$10000,A103,المنصرف!E:E) -> 0 | H103: 0 | I103: 0 | J103: 0 | K103: ='رصيد اول'!D103 -> 0
A104: ='رصيد اول'!A104 -> 0 | B104: ='رصيد اول'!B104 -> 0 | C104: =SUMIF('رصيد اول'!$A:$B,'رصيد اول'!A104,'رصيد اول'!C:C) -> 0 | D104: 0 | E104: =SUMIF(الوارد!$D:$D,الرصيد!A104,الوارد!F:F) -> 0 | F104: 0 | G104: =SUMIF(المنصرف!$C$1:$C$10000,A104,المنصرف!E:E) -> 0 | H104: 0 | I104: 0 | J104: 0 | K104: ='رصيد اول'!D104 -> 0
A105: ='رصيد اول'!A105 -> 0 | B105: ='رصيد اول'!B105 -> 0 | C105: =SUMIF('رصيد اول'!$A:$B,'رصيد اول'!A105,'رصيد اول'!C:C) -> 0 | D105: 0 | E105: =SUMIF(الوارد!$D:$D,الرصيد!A105,الوارد!F:F) -> 0 | F105: 0 | G105: =SUMIF(المنصرف!$C$1:$C$10000,A105,المنصرف!E:E) -> 0 | H105: 0 | I105: 0 | J105: 0 | K105: ='رصيد اول'!D105 -> 0
A106: ='رصيد اول'!A106 -> 0 | B106: ='رصيد اول'!B106 -> 0 | C106: =SUMIF('رصيد اول'!$A:$B,'رصيد اول'!A106,'رصيد اول'!C:C) -> 0 | D106: 0 | E106: =SUMIF(الوارد!$D:$D,الرصيد!A106,الوارد!F:F) -> 0 | F106: 0 | G106: =SUMIF(المنصرف!$C$1:$C$10000,A106,المنصرف!E:E) -> 0 | H106: 0 | I106: 0 | J106: 0 | K106: ='رصيد اول'!D106 -> 0
A107: ='رصيد اول'!A107 -> 0 | B107: ='رصيد اول'!B107 -> 0 | C107: =SUMIF('رصيد اول'!$A:$B,'رصيد اول'!A107,'رصيد اول'!C:C) -> 0 | D107: 0 | E107: =SUMIF(الوارد!$D:$D,الرصيد!A107,الوارد!F:F) -> 0 | F107: 0 | G107: =SUMIF(المنصرف!$C$1:$C$10000,A107,المنصرف!E:E) -> 0 | H107: 0 | I107: 0 | J107: 0 | K107: ='رصيد اول'!D107 -> 0
A108: ='رصيد اول'!A108 -> 0 | B108: ='رصيد اول'!B108 -> 0 | C108: =SUMIF('رصيد اول'!$A:$B,'رصيد اول'!A108,'رصيد اول'!C:C) -> 0 | D108: 0 | E108: =SUMIF(الوارد!$D:$D,الرصيد!A108,الوارد!F:F) -> 0 | F108: 0 | G108: =SUMIF(المنصرف!$C$1:$C$10000,A108,المنصرف!E:E) -> 0 | H108: 0 | I108: 0 | J108: 0 | K108: ='رصيد اول'!D108 -> 0
A109: ='رصيد اول'!A109 -> 0 | B109: ='رصيد اول'!B109 -> 0 | C109: =SUMIF('رصيد اول'!$A:$B,'رصيد اول'!A109,'رصيد اول'!C:C) -> 0 | D109: 0 | E109: =SUMIF(الوارد!$D:$D,الرصيد!A109,الوارد!F:F) -> 0 | F109: 0 | G109: =SUMIF(المنصرف!$C$1:$C$10000,A109,المنصرف!E:E) -> 0 | H109: 0 | I109: 0 | J109: 0 | K109: ='رصيد اول'!D109 -> 0
A110: ='رصيد اول'!A110 -> 0 | B110: ='رصيد اول'!B110 -> 0 | C110: =SUMIF('رصيد اول'!$A:$B,'رصيد اول'!A110,'رصيد اول'!C:C) -> 0 | D110: 0 | E110: =SUMIF(الوارد!$D:$D,الرصيد!A110,الوارد!F:F) -> 0 | F110: 0 | G110: =SUMIF(المنصرف!$C$1:$C$10000,A110,المنصرف!E:E) -> 0 | H110: 0 | I110: 0 | J110: 0 | K110: ='رصيد اول'!D110 -> 0
A111: ='رصيد اول'!A111 -> 0 | B111: ='رصيد اول'!B111 -> 0 | C111: =SUMIF('رصيد اول'!$A:$B,'رصيد اول'!A111,'رصيد اول'!C:C) -> 0 | D111: 0 | E111: =SUMIF(الوارد!$D:$D,الرصيد!A111,الوارد!F:F) -> 0 | F111: 0 | G111: =SUMIF(المنصرف!$C$1:$C$10000,A111,المنصرف!E:E) -> 0 | H111: 0 | I111: 0 | J111: 0 | K111: ='رصيد اول'!D111 -> 0
A112: ='رصيد اول'!A112 -> 0 | B112: ='رصيد اول'!B112 -> 0 | C112: =SUMIF('رصيد اول'!$A:$B,'رصيد اول'!A112,'رصيد اول'!C:C) -> 0 | D112: 0 | E112: =SUMIF(الوارد!$D:$D,الرصيد!A112,الوارد!F:F) -> 0 | F112: 0 | G112: =SUMIF(المنصرف!$C$1:$C$10000,A112,المنصرف!E:E) -> 0 | H112: 0 | I112: 0 | J112: 0 | K112: ='رصيد اول'!D112 -> 0
A113: ='رصيد اول'!A113 -> 0 | B113: ='رصيد اول'!B113 -> 0 | C113: =SUMIF('رصيد اول'!$A:$B,'رصيد اول'!A113,'رصيد اول'!C:C) -> 0 | D113: 0 | E113: =SUMIF(الوارد!$D:$D,الرصيد!A113,الوارد!F:F) -> 0 | F113: 0 | G113: =SUMIF(المنصرف!$C$1:$C$10000,A113,المنصرف!E:E) -> 0 | H113: 0 | I113: 0 | J113: 0 | K113: ='رصيد اول'!D113 -> 0
A114: ='رصيد اول'!A114 -> 0 | B114: ='رصيد اول'!B114 -> 0 | C114: =SUMIF('رصيد اول'!$A:$B,'رصيد اول'!A114,'رصيد اول'!C:C) -> 0 | D114: 0 | E114: =SUMIF(الوارد!$D:$D,الرصيد!A114,الوارد!F:F) -> 0 | F114: 0 | G114: =SUMIF(المنصرف!$C$1:$C$10000,A114,المنصرف!E:E) -> 0 | H114: 0 | I114: 0 | J114: 0 | K114: ='رصيد اول'!D114 -> 0
A115: ='رصيد اول'!A115 -> 0 | B115: ='رصيد اول'!B115 -> 0 | C115: =SUMIF('رصيد اول'!$A:$B,'رصيد اول'!A115,'رصيد اول'!C:C) -> 0 | D115: 0 | E115: =SUMIF(الوارد!$D:$D,الرصيد!A115,الوارد!F:F) -> 0 | F115: 0 | G115: =SUMIF(المنصرف!$C$1:$C$10000,A115,المنصرف!E:E) -> 0 | H115: 0 | I115: 0 | J115: 0 | K115: ='رصيد اول'!D115 -> 0
A116: ='رصيد اول'!A116 -> 0 | B116: ='رصيد اول'!B116 -> 0 | C116: =SUMIF('رصيد اول'!$A:$B,'رصيد اول'!A116,'رصيد اول'!C:C) -> 0 | D116: 0 | E116: =SUMIF(الوارد!$D:$D,الرصيد!A116,الوارد!F:F) -> 0 | F116: 0 | G116: =SUMIF(المنصرف!$C$1:$C$10000,A116,المنصرف!E:E) -> 0 | H116: 0 | I116: 0 | J116: 0 | K116: ='رصيد اول'!D116 -> 0
A117: ='رصيد اول'!A117 -> 0 | B117: ='رصيد اول'!B117 -> 0 | C117: =SUMIF('رصيد اول'!$A:$B,'رصيد اول'!A117,'رصيد اول'!C:C) -> 0 | D117: 0 | E117: =SUMIF(الوارد!$D:$D,الرصيد!A117,الوارد!F:F) -> 0 | F117: 0 | G117: =SUMIF(المنصرف!$C$1:$C$10000,A117,المنصرف!E:E) -> 0 | H117: 0 | I117: 0 | J117: 0 | K117: ='رصيد اول'!D117 -> 0
A118: ='رصيد اول'!A118 -> 0 | B118: ='رصيد اول'!B118 -> 0 | C118: =SUMIF('رصيد اول'!$A:$B,'رصيد اول'!A118,'رصيد اول'!C:C) -> 0 | D118: 0 | E118: =SUMIF(الوارد!$D:$D,الرصيد!A118,الوارد!F:F) -> 0 | F118: 0 | G118: =SUMIF(المنصرف!$C$1:$C$10000,A118,المنصرف!E:E) -> 0 | H118: 0 | I118: 0 | J118: 0 | K118: ='رصيد اول'!D118 -> 0
A119: ='رصيد اول'!A119 -> 0 | B119: ='رصيد اول'!B119 -> 0 | C119: =SUMIF('رصيد اول'!$A:$B,'رصيد اول'!A119,'رصيد اول'!C:C) -> 0 | D119: 0 | E119: =SUMIF(الوارد!$D:$D,الرصيد!A119,الوارد!F:F) -> 0 | F119: 0 | G119: =SUMIF(المنصرف!$C$1:$C$10000,A119,المنصرف!E:E) -> 0 | H119: 0 | I119: 0 | J119: 0 | K119: ='رصيد اول'!D119 -> 0
A120: ='رصيد اول'!A120 -> 0 | B120: ='رصيد اول'!B120 -> 0 | C120: =SUMIF('رصيد اول'!$A:$B,'رصيد اول'!A120,'رصيد اول'!C:C) -> 0 | D120: 0 | E120: =SUMIF(الوارد!$D:$D,الرصيد!A120,الوارد!F:F) -> 0 | F120: 0 | G120: =SUMIF(المنصرف!$C$1:$C$10000,A120,المنصرف!E:E) -> 0 | H120: 0 | I120: 0 | J120: 0 | K120: ='رصيد اول'!D120 -> 0
A121: ='رصيد اول'!A121 -> 0 | B121: ='رصيد اول'!B121 -> 0 | C121: =SUMIF('رصيد اول'!$A:$B,'رصيد اول'!A121,'رصيد اول'!C:C) -> 0 | D121: 0 | E121: =SUMIF(الوارد!$D:$D,الرصيد!A121,الوارد!F:F) -> 0 | F121: 0 | G121: =SUMIF(المنصرف!$C$1:$C$10000,A121,المنصرف!E:E) -> 0 | H121: 0 | I121: 0 | J121: 0 | K121: ='رصيد اول'!D121 -> 0
A122: ='رصيد اول'!A122 -> 0 | B122: ='رصيد اول'!B122 -> 0 | C122: =SUMIF('رصيد اول'!$A:$B,'رصيد اول'!A122,'رصيد اول'!C:C) -> 0 | D122: 0 | E122: =SUMIF(الوارد!$D:$D,الرصيد!A122,الوارد!F:F) -> 0 | F122: 0 | G122: =SUMIF(المنصرف!$C$1:$C$10000,A122,المنصرف!E:E) -> 0 | H122: 0 | I122: 0 | J122: 0 | K122: ='رصيد اول'!D122 -> 0
A123: ='رصيد اول'!A123 -> 0 | B123: ='رصيد اول'!B123 -> 0 | C123: =SUMIF('رصيد اول'!$A:$B,'رصيد اول'!A123,'رصيد اول'!C:C) -> 0 | D123: 0 | E123: =SUMIF(الوارد!$D:$D,الرصيد!A123,الوارد!F:F) -> 0 | F123: 0 | G123: =SUMIF(المنصرف!$C$1:$C$10000,A123,المنصرف!E:E) -> 0 | H123: 0 | I123: 0 | J123: 0 | K123: ='رصيد اول'!D123 -> 0
A124: ='رصيد اول'!A124 -> 0 | B124: ='رصيد اول'!B124 -> 0 | C124: =SUMIF('رصيد اول'!$A:$B,'رصيد اول'!A124,'رصيد اول'!C:C) -> 0 | D124: 0 | E124: =SUMIF(الوارد!$D:$D,الرصيد!A124,الوارد!F:F) -> 0 | F124: 0 | G124: =SUMIF(المنصرف!$C$1:$C$10000,A124,المنصرف!E:E) -> 0 | H124: 0 | I124: 0 | J124: 0 | K124: ='رصيد اول'!D124 -> 0
A125: ='رصيد اول'!A125 -> 0 | B125: ='رصيد اول'!B125 -> 0 | C125: =SUMIF('رصيد اول'!$A:$B,'رصيد اول'!A125,'رصيد اول'!C:C) -> 0 | D125: 0 | E125: =SUMIF(الوارد!$D:$D,الرصيد!A125,الوارد!F:F) -> 0 | F125: 0 | G125: =SUMIF(المنصرف!$C$1:$C$10000,A125,المنصرف!E:E) -> 0 | H125: 0 | I125: 0 | J125: 0 | K125: ='رصيد اول'!D125 -> 0
A126: ='رصيد اول'!A126 -> 0 | B126: ='رصيد اول'!B126 -> 0 | C126: =SUMIF('رصيد اول'!$A:$B,'رصيد اول'!A126,'رصيد اول'!C:C) -> 0 | D126: 0 | E126: =SUMIF(الوارد!$D:$D,الرصيد!A126,الوارد!F:F) -> 0 | F126: 0 | G126: =SUMIF(المنصرف!$C$1:$C$10000,A126,المنصرف!E:E) -> 0 | H126: 0 | I126: 0 | J126: 0 | K126: ='رصيد اول'!D126 -> 0
A127: ='رصيد اول'!A127 -> 0 | B127: ='رصيد اول'!B127 -> 0 | C127: =SUMIF('رصيد اول'!$A:$B,'رصيد اول'!A127,'رصيد اول'!C:C) -> 0 | D127: 0 | E127: =SUMIF(الوارد!$D:$D,الرصيد!A127,الوارد!F:F) -> 0 | F127: 0 | G127: =SUMIF(المنصرف!$C$1:$C$10000,A127,المنصرف!E:E) -> 0 | H127: 0 | I127: 0 | J127: 0 | K127: ='رصيد اول'!D127 -> 0
A128: ='رصيد اول'!A128 -> 0 | B128: ='رصيد اول'!B128 -> 0 | C128: =SUMIF('رصيد اول'!$A:$B,'رصيد اول'!A128,'رصيد اول'!C:C) -> 0 | D128: 0 | E128: =SUMIF(الوارد!$D:$D,الرصيد!A128,الوارد!F:F) -> 0 | F128: 0 | G128: =SUMIF(المنصرف!$C$1:$C$10000,A128,المنصرف!E:E) -> 0 | H128: 0 | I128: 0 | J128: 0 | K128: ='رصيد اول'!D128 -> 0
A129: ='رصيد اول'!A129 -> 0 | B129: ='رصيد اول'!B129 -> 0 | C129: =SUMIF('رصيد اول'!$A:$B,'رصيد اول'!A129,'رصيد اول'!C:C) -> 0 | D129: 0 | E129: =SUMIF(الوارد!$D:$D,الرصيد!A129,الوارد!F:F) -> 0 | F129: 0 | G129: =SUMIF(المنصرف!$C$1:$C$10000,A129,المنصرف!E:E) -> 0 | H129: 0 | I129: 0 | J129: 0 | K129: ='رصيد اول'!D129 -> 0
A130: ='رصيد اول'!A130 -> 0 | B130: ='رصيد اول'!B130 -> 0 | C130: =SUMIF('رصيد اول'!$A:$B,'رصيد اول'!A130,'رصيد اول'!C:C) -> 0 | D130: 0 | E130: =SUMIF(الوارد!$D:$D,الرصيد!A130,الوارد!F:F) -> 0 | F130: 0 | G130: =SUMIF(المنصرف!$C$1:$C$10000,A130,المنصرف!E:E) -> 0 | H130: 0 | I130: 0 | J130: 0 | K130: ='رصيد اول'!D130 -> 0
A131: ='رصيد اول'!A131 -> 0 | B131: ='رصيد اول'!B131 -> 0 | C131: =SUMIF('رصيد اول'!$A:$B,'رصيد اول'!A131,'رصيد اول'!C:C) -> 0 | D131: 0 | E131: =SUMIF(الوارد!$D:$D,الرصيد!A131,الوارد!F:F) -> 0 | F131: 0 | G131: =SUMIF(المنصرف!$C$1:$C$10000,A131,المنصرف!E:E) -> 0 | H131: 0 | I131: =C131+E131-G131 -> 0 | J131: 0 | K131: ='رصيد اول'!D131 -> 0
A132: ='رصيد اول'!A132 -> 0 | B132: ='رصيد اول'!B132 -> 0 | C132: =SUMIF('رصيد اول'!$A:$B,'رصيد اول'!A132,'رصيد اول'!C:C) -> 0 | D132: =C132*K132 -> 0 | E132: =SUMIF(الوارد!$D:$D,الرصيد!A132,الوارد!F:F) -> 0 | F132: =+E132*K132 -> 0 | G132: =SUMIF(المنصرف!$C$1:$C$10000,A132,المنصرف!E:E) -> 0 | H132: =G132*K132 -> 0 | I132: 0 | J132: =I132*K132 -> 0 | K132: ='رصيد اول'!D132 -> 0
A133: ='رصيد اول'!A133 -> 0 | B133: ='رصيد اول'!B133 -> 0 | C133: =SUMIF('رصيد اول'!$A:$B,'رصيد اول'!A133,'رصيد اول'!C:C) -> 0 | D133: 0 | E133: =SUMIF(الوارد!$D:$D,الرصيد!A133,الوارد!F:F) -> 0 | F133: 0 | G133: =SUMIF(المنصرف!$C$1:$C$10000,A133,المنصرف!E:E) -> 0 | H133: 0 | I133: 0 | J133: 0 | K133: ='رصيد اول'!D133 -> 0
A134: ='رصيد اول'!A134 -> 0 | B134: ='رصيد اول'!B134 -> 0 | C134: =SUMIF('رصيد اول'!$A:$B,'رصيد اول'!A134,'رصيد اول'!C:C) -> 0 | D134: 0 | E134: =SUMIF(الوارد!$D:$D,الرصيد!A134,الوارد!F:F) -> 0 | F134: 0 | G134: =SUMIF(المنصرف!$C$1:$C$10000,A134,المنصرف!E:E) -> 0 | H134: 0 | I134: 0 | J134: 0 | K134: ='رصيد اول'!D134 -> 0
A135: ='رصيد اول'!A135 -> 0 | B135: ='رصيد اول'!B135 -> 0 | C135: =SUMIF('رصيد اول'!$A:$B,'رصيد اول'!A135,'رصيد اول'!C:C) -> 0 | D135: 0 | E135: =SUMIF(الوارد!$D:$D,الرصيد!A135,الوارد!F:F) -> 0 | F135: 0 | G135: =SUMIF(المنصرف!$C$1:$C$10000,A135,المنصرف!E:E) -> 0 | H135: 0 | I135: 0 | J135: 0 | K135: ='رصيد اول'!D135 -> 0
A136: ='رصيد اول'!A136 -> 0 | B136: ='رصيد اول'!B136 -> 0 | C136: =SUMIF('رصيد اول'!$A:$B,'رصيد اول'!A136,'رصيد اول'!C:C) -> 0 | D136: 0 | E136: =SUMIF(الوارد!$D:$D,الرصيد!A136,الوارد!F:F) -> 0 | F136: 0 | G136: =SUMIF(المنصرف!$C$1:$C$10000,A136,المنصرف!E:E) -> 0 | H136: 0 | I136: 0 | J136: 0 | K136: ='رصيد اول'!D136 -> 0
A137: ='رصيد اول'!A137 -> 0 | B137: ='رصيد اول'!B137 -> 0 | C137: =SUMIF('رصيد اول'!$A:$B,'رصيد اول'!A137,'رصيد اول'!C:C) -> 0 | D137: 0 | E137: =SUMIF(الوارد!$D:$D,الرصيد!A137,الوارد!F:F) -> 0 | F137: 0 | G137: =SUMIF(المنصرف!$C$1:$C$10000,A137,المنصرف!E:E) -> 0 | H137: 0 | I137: 0 | J137: 0 | K137: ='رصيد اول'!D137 -> 0
A138: ='رصيد اول'!A138 -> 0 | B138: ='رصيد اول'!B138 -> 0 | C138: =SUMIF('رصيد اول'!$A:$B,'رصيد اول'!A138,'رصيد اول'!C:C) -> 0 | D138: 0 | E138: =SUMIF(الوارد!$D:$D,الرصيد!A138,الوارد!F:F) -> 0 | F138: 0 | G138: =SUMIF(المنصرف!$C$1:$C$10000,A138,المنصرف!E:E) -> 0 | H138: 0 | I138: 0 | J138: 0 | K138: ='رصيد اول'!D138 -> 0
A139: ='رصيد اول'!A139 -> 0 | B139: ='رصيد اول'!B139 -> 0 | C139: =SUMIF('رصيد اول'!$A:$B,'رصيد اول'!A139,'رصيد اول'!C:C) -> 0 | D139: 0 | E139: =SUMIF(الوارد!$D:$D,الرصيد!A139,الوارد!F:F) -> 0 | F139: 0 | G139: =SUMIF(المنصرف!$C$1:$C$10000,A139,المنصرف!E:E) -> 0 | H139: 0 | I139: 0 | J139: 0 | K139: ='رصيد اول'!D139 -> 0
A140: ='رصيد اول'!A140 -> 0 | B140: ='رصيد اول'!B140 -> 0 | C140: =SUMIF('رصيد اول'!$A:$B,'رصيد اول'!A140,'رصيد اول'!C:C) -> 0 | D140: 0 | E140: =SUMIF(الوارد!$D:$D,الرصيد!A140,الوارد!F:F) -> 0 | F140: 0 | G140: =SUMIF(المنصرف!$C$1:$C$10000,A140,المنصرف!E:E) -> 0 | H140: 0 | I140: 0 | J140: 0 | K140: ='رصيد اول'!D140 -> 0
A141: ='رصيد اول'!A141 -> 0 | B141: ='رصيد اول'!B141 -> 0 | C141: =SUMIF('رصيد اول'!$A:$B,'رصيد اول'!A141,'رصيد اول'!C:C) -> 0 | D141: 0 | E141: =SUMIF(الوارد!$D:$D,الرصيد!A141,الوارد!F:F) -> 0 | F141: 0 | G141: =SUMIF(المنصرف!$C$1:$C$10000,A141,المنصرف!E:E) -> 0 | H141: 0 | I141: 0 | J141: 0 | K141: ='رصيد اول'!D141 -> 0
A142: ='رصيد اول'!A142 -> 0 | B142: ='رصيد اول'!B142 -> 0 | C142: =SUMIF('رصيد اول'!$A:$B,'رصيد اول'!A142,'رصيد اول'!C:C) -> 0 | D142: 0 | E142: =SUMIF(الوارد!$D:$D,الرصيد!A142,الوارد!F:F) -> 0 | F142: 0 | G142: =SUMIF(المنصرف!$C$1:$C$10000,A142,المنصرف!E:E) -> 0 | H142: 0 | I142: 0 | J142: 0 | K142: ='رصيد اول'!D142 -> 0
A143: ='رصيد اول'!A143 -> 0 | B143: ='رصيد اول'!B143 -> 0 | C143: =SUMIF('رصيد اول'!$A:$B,'رصيد اول'!A143,'رصيد اول'!C:C) -> 0 | D143: 0 | E143: =SUMIF(الوارد!$D:$D,الرصيد!A143,الوارد!F:F) -> 0 | F143: 0 | G143: =SUMIF(المنصرف!$C$1:$C$10000,A143,المنصرف!E:E) -> 0 | H143: 0 | I143: 0 | J143: 0 | K143: ='رصيد اول'!D143 -> 0
A144: ='رصيد اول'!A144 -> 0 | B144: ='رصيد اول'!B144 -> 0 | C144: =SUMIF('رصيد اول'!$A:$B,'رصيد اول'!A144,'رصيد اول'!C:C) -> 0 | D144: 0 | E144: =SUMIF(الوارد!$D:$D,الرصيد!A144,الوارد!F:F) -> 0 | F144: 0 | G144: =SUMIF(المنصرف!$C$1:$C$10000,A144,المنصرف!E:E) -> 0 | H144: 0 | I144: 0 | J144: 0 | K144: ='رصيد اول'!D144 -> 0
A145: ='رصيد اول'!A145 -> 0 | B145: ='رصيد اول'!B145 -> 0 | C145: =SUMIF('رصيد اول'!$A:$B,'رصيد اول'!A145,'رصيد اول'!C:C) -> 0 | D145: 0 | E145: =SUMIF(الوارد!$D:$D,الرصيد!A145,الوارد!F:F) -> 0 | F145: 0 | G145: =SUMIF(المنصرف!$C$1:$C$10000,A145,المنصرف!E:E) -> 0 | H145: 0 | I145: 0 | J145: 0 | K145: ='رصيد اول'!D145 -> 0
A146: ='رصيد اول'!A146 -> 0 | B146: ='رصيد اول'!B146 -> 0 | C146: =SUMIF('رصيد اول'!$A:$B,'رصيد اول'!A146,'رصيد اول'!C:C) -> 0 | D146: 0 | E146: =SUMIF(الوارد!$D:$D,الرصيد!A146,الوارد!F:F) -> 0 | F146: 0 | G146: =SUMIF(المنصرف!$C$1:$C$10000,A146,المنصرف!E:E) -> 0 | H146: 0 | I146: 0 | J146: 0 | K146: ='رصيد اول'!D146 -> 0
A147: ='رصيد اول'!A147 -> 0 | B147: ='رصيد اول'!B147 -> 0 | C147: =SUMIF('رصيد اول'!$A:$B,'رصيد اول'!A147,'رصيد اول'!C:C) -> 0 | D147: 0 | E147: =SUMIF(الوارد!$D:$D,الرصيد!A147,الوارد!F:F) -> 0 | F147: 0 | G147: =SUMIF(المنصرف!$C$1:$C$10000,A147,المنصرف!E:E) -> 0 | H147: 0 | I147: 0 | J147: 0 | K147: ='رصيد اول'!D147 -> 0
A148: ='رصيد اول'!A148 -> 0 | B148: ='رصيد اول'!B148 -> 0 | C148: =SUMIF('رصيد اول'!$A:$B,'رصيد اول'!A148,'رصيد اول'!C:C) -> 0 | D148: 0 | E148: =SUMIF(الوارد!$D:$D,الرصيد!A148,الوارد!F:F) -> 0 | F148: 0 | G148: =SUMIF(المنصرف!$C$1:$C$10000,A148,المنصرف!E:E) -> 0 | H148: 0 | I148: 0 | J148: 0 | K148: ='رصيد اول'!D148 -> 0
A149: ='رصيد اول'!A149 -> 0 | B149: ='رصيد اول'!B149 -> 0 | C149: =SUMIF('رصيد اول'!$A:$B,'رصيد اول'!A149,'رصيد اول'!C:C) -> 0 | D149: 0 | E149: =SUMIF(الوارد!$D:$D,الرصيد!A149,الوارد!F:F) -> 0 | F149: 0 | G149: =SUMIF(المنصرف!$C$1:$C$10000,A149,المنصرف!E:E) -> 0 | H149: 0 | I149: 0 | J149: 0 | K149: ='رصيد اول'!D149 -> 0
A150: ='رصيد اول'!A150 -> 0 | B150: ='رصيد اول'!B150 -> 0 | C150: =SUMIF('رصيد اول'!$A:$B,'رصيد اول'!A150,'رصيد اول'!C:C) -> 0 | D150: 0 | E150: =SUMIF(الوارد!$D:$D,الرصيد!A150,الوارد!F:F) -> 0 | F150: 0 | G150: =SUMIF(المنصرف!$C$1:$C$10000,A150,المنصرف!E:E) -> 0 | H150: 0 | I150: 0 | J150: 0 | K150: ='رصيد اول'!D150 -> 0
A151: ='رصيد اول'!A151 -> 0 | B151: ='رصيد اول'!B151 -> 0 | C151: =SUMIF('رصيد اول'!$A:$B,'رصيد اول'!A151,'رصيد اول'!C:C) -> 0 | D151: 0 | E151: =SUMIF(الوارد!$D:$D,الرصيد!A151,الوارد!F:F) -> 0 | F151: 0 | G151: =SUMIF(المنصرف!$C$1:$C$10000,A151,المنصرف!E:E) -> 0 | H151: 0 | I151: 0 | J151: 0 | K151: ='رصيد اول'!D151 -> 0
A152: ='رصيد اول'!A152 -> 0 | B152: ='رصيد اول'!B152 -> 0 | C152: =SUMIF('رصيد اول'!$A:$B,'رصيد اول'!A152,'رصيد اول'!C:C) -> 0 | D152: 0 | E152: =SUMIF(الوارد!$D:$D,الرصيد!A152,الوارد!F:F) -> 0 | F152: 0 | G152: =SUMIF(المنصرف!$C$1:$C$10000,A152,المنصرف!E:E) -> 0 | H152: 0 | I152: 0 | J152: 0 | K152: ='رصيد اول'!D152 -> 0
A153: ='رصيد اول'!A153 -> 0 | B153: ='رصيد اول'!B153 -> 0 | C153: =SUMIF('رصيد اول'!$A:$B,'رصيد اول'!A153,'رصيد اول'!C:C) -> 0 | D153: 0 | E153: =SUMIF(الوارد!$D:$D,الرصيد!A153,الوارد!F:F) -> 0 | F153: 0 | G153: =SUMIF(المنصرف!$C$1:$C$10000,A153,المنصرف!E:E) -> 0 | H153: 0 | I153: 0 | J153: 0 | K153: ='رصيد اول'!D153 -> 0
A154: ='رصيد اول'!A154 -> 0 | B154: ='رصيد اول'!B154 -> 0 | C154: =SUMIF('رصيد اول'!$A:$B,'رصيد اول'!A154,'رصيد اول'!C:C) -> 0 | D154: 0 | E154: =SUMIF(الوارد!$D:$D,الرصيد!A154,الوارد!F:F) -> 0 | F154: 0 | G154: =SUMIF(المنصرف!$C$1:$C$10000,A154,المنصرف!E:E) -> 0 | H154: 0 | I154: 0 | J154: 0 | K154: ='رصيد اول'!D154 -> 0
A155: ='رصيد اول'!A155 -> 0 | B155: ='رصيد اول'!B155 -> 0 | C155: =SUMIF('رصيد اول'!$A:$B,'رصيد اول'!A155,'رصيد اول'!C:C) -> 0 | D155: 0 | E155: =SUMIF(الوارد!$D:$D,الرصيد!A155,الوارد!F:F) -> 0 | F155: 0 | G155: =SUMIF(المنصرف!$C$1:$C$10000,A155,المنصرف!E:E) -> 0 | H155: 0 | I155: 0 | J155: 0 | K155: ='رصيد اول'!D155 -> 0
A156: ='رصيد اول'!A156 -> 0 | B156: ='رصيد اول'!B156 -> 0 | C156: =SUMIF('رصيد اول'!$A:$B,'رصيد اول'!A156,'رصيد اول'!C:C) -> 0 | D156: 0 | E156: =SUMIF(الوارد!$D:$D,الرصيد!A156,الوارد!F:F) -> 0 | F156: 0 | G156: =SUMIF(المنصرف!$C$1:$C$10000,A156,المنصرف!E:E) -> 0 | H156: 0 | I156: 0 | J156: 0 | K156: ='رصيد اول'!D156 -> 0
A157: ='رصيد اول'!A157 -> 0 | B157: ='رصيد اول'!B157 -> 0 | C157: =SUMIF('رصيد اول'!$A:$B,'رصيد اول'!A157,'رصيد اول'!C:C) -> 0 | D157: 0 | E157: =SUMIF(الوارد!$D:$D,الرصيد!A157,الوارد!F:F) -> 0 | F157: 0 | G157: =SUMIF(المنصرف!$C$1:$C$10000,A157,المنصرف!E:E) -> 0 | H157: 0 | I157: 0 | J157: 0 | K157: ='رصيد اول'!D157 -> 0
A158: ='رصيد اول'!A158 -> 0 | B158: ='رصيد اول'!B158 -> 0 | C158: =SUMIF('رصيد اول'!$A:$B,'رصيد اول'!A158,'رصيد اول'!C:C) -> 0 | D158: 0 | E158: =SUMIF(الوارد!$D:$D,الرصيد!A158,الوارد!F:F) -> 0 | F158: 0 | G158: =SUMIF(المنصرف!$C$1:$C$10000,A158,المنصرف!E:E) -> 0 | H158: 0 | I158: 0 | J158: 0 | K158: ='رصيد اول'!D158 -> 0
A159: ='رصيد اول'!A159 -> 0 | B159: ='رصيد اول'!B159 -> 0 | C159: =SUMIF('رصيد اول'!$A:$B,'رصيد اول'!A159,'رصيد اول'!C:C) -> 0 | D159: 0 | E159: =SUMIF(الوارد!$D:$D,الرصيد!A159,الوارد!F:F) -> 0 | F159: 0 | G159: =SUMIF(المنصرف!$C$1:$C$10000,A159,المنصرف!E:E) -> 0 | H159: 0 | I159: 0 | J159: 0 | K159: ='رصيد اول'!D159 -> 0
A160: ='رصيد اول'!A160 -> 0 | B160: ='رصيد اول'!B160 -> 0 | C160: =SUMIF('رصيد اول'!$A:$B,'رصيد اول'!A160,'رصيد اول'!C:C) -> 0 | D160: 0 | E160: =SUMIF(الوارد!$D:$D,الرصيد!A160,الوارد!F:F) -> 0 | F160: 0 | G160: =SUMIF(المنصرف!$C$1:$C$10000,A160,المنصرف!E:E) -> 0 | H160: 0 | I160: 0 | J160: 0 | K160: ='رصيد اول'!D160 -> 0
A161: ='رصيد اول'!A161 -> 0 | B161: ='رصيد اول'!B161 -> 0 | C161: =SUMIF('رصيد اول'!$A:$B,'رصيد اول'!A161,'رصيد اول'!C:C) -> 0 | D161: 0 | E161: =SUMIF(الوارد!$D:$D,الرصيد!A161,الوارد!F:F) -> 0 | F161: 0 | G161: =SUMIF(المنصرف!$C$1:$C$10000,A161,المنصرف!E:E) -> 0 | H161: 0 | I161: 0 | J161: 0 | K161: ='رصيد اول'!D161 -> 0
A162: ='رصيد اول'!A162 -> 0 | B162: ='رصيد اول'!B162 -> 0 | C162: =SUMIF('رصيد اول'!$A:$B,'رصيد اول'!A162,'رصيد اول'!C:C) -> 0 | D162: 0 | E162: =SUMIF(الوارد!$D:$D,الرصيد!A162,الوارد!F:F) -> 0 | F162: 0 | G162: =SUMIF(المنصرف!$C$1:$C$10000,A162,المنصرف!E:E) -> 0 | H162: 0 | I162: 0 | J162: 0 | K162: ='رصيد اول'!D162 -> 0
A163: ='رصيد اول'!A163 -> 0 | B163: ='رصيد اول'!B163 -> 0 | C163: =SUMIF('رصيد اول'!$A:$B,'رصيد اول'!A163,'رصيد اول'!C:C) -> 0 | D163: 0 | E163: =SUMIF(الوارد!$D:$D,الرصيد!A163,الوارد!F:F) -> 0 | F163: 0 | G163: =SUMIF(المنصرف!$C$1:$C$10000,A163,المنصرف!E:E) -> 0 | H163: 0 | I163: 0 | J163: 0 | K163: ='رصيد اول'!D163 -> 0
A164: ='رصيد اول'!A164 -> 0 | B164: ='رصيد اول'!B164 -> 0 | C164: =SUMIF('رصيد اول'!$A:$B,'رصيد اول'!A164,'رصيد اول'!C:C) -> 0 | D164: 0 | E164: =SUMIF(الوارد!$D:$D,الرصيد!A164,الوارد!F:F) -> 0 | F164: 0 | G164: =SUMIF(المنصرف!$C$1:$C$10000,A164,المنصرف!E:E) -> 0 | H164: 0 | I164: 0 | J164: 0 | K164: ='رصيد اول'!D164 -> 0
A165: ='رصيد اول'!A165 -> 0 | B165: ='رصيد اول'!B165 -> 0 | C165: =SUMIF('رصيد اول'!$A:$B,'رصيد اول'!A165,'رصيد اول'!C:C) -> 0 | D165: 0 | E165: =SUMIF(الوارد!$D:$D,الرصيد!A165,الوارد!F:F) -> 0 | F165: 0 | G165: =SUMIF(المنصرف!$C$1:$C$10000,A165,المنصرف!E:E) -> 0 | H165: 0 | I165: 0 | J165: 0 | K165: ='رصيد اول'!D165 -> 0
A166: ='رصيد اول'!A166 -> 0 | B166: ='رصيد اول'!B166 -> 0 | C166: =SUMIF('رصيد اول'!$A:$B,'رصيد اول'!A166,'رصيد اول'!C:C) -> 0 | D166: 0 | E166: =SUMIF(الوارد!$D:$D,الرصيد!A166,الوارد!F:F) -> 0 | F166: 0 | G166: =SUMIF(المنصرف!$C$1:$C$10000,A166,المنصرف!E:E) -> 0 | H166: 0 | I166: 0 | J166: 0 | K166: ='رصيد اول'!D166 -> 0
A167: ='رصيد اول'!A167 -> 0 | B167: ='رصيد اول'!B167 -> 0 | C167: =SUMIF('رصيد اول'!$A:$B,'رصيد اول'!A167,'رصيد اول'!C:C) -> 0 | D167: 0 | E167: =SUMIF(الوارد!$D:$D,الرصيد!A167,الوارد!F:F) -> 0 | F167: 0 | G167: =SUMIF(المنصرف!$C$1:$C$10000,A167,المنصرف!E:E) -> 0 | H167: 0 | I167: 0 | J167: 0 | K167: ='رصيد اول'!D167 -> 0
A168: ='رصيد اول'!A168 -> 0 | B168: ='رصيد اول'!B168 -> 0 | C168: =SUMIF('رصيد اول'!$A:$B,'رصيد اول'!A168,'رصيد اول'!C:C) -> 0 | D168: 0 | E168: =SUMIF(الوارد!$D:$D,الرصيد!A168,الوارد!F:F) -> 0 | F168: 0 | G168: =SUMIF(المنصرف!$C$1:$C$10000,A168,المنصرف!E:E) -> 0 | H168: 0 | I168: 0 | J168: 0 | K168: ='رصيد اول'!D168 -> 0
A169: ='رصيد اول'!A169 -> 0 | B169: ='رصيد اول'!B169 -> 0 | C169: =SUMIF('رصيد اول'!$A:$B,'رصيد اول'!A169,'رصيد اول'!C:C) -> 0 | D169: 0 | E169: =SUMIF(الوارد!$D:$D,الرصيد!A169,الوارد!F:F) -> 0 | F169: 0 | G169: =SUMIF(المنصرف!$C$1:$C$10000,A169,المنصرف!E:E) -> 0 | H169: 0 | I169: 0 | J169: 0 | K169: ='رصيد اول'!D169 -> 0
A170: ='رصيد اول'!A170 -> 0 | B170: ='رصيد اول'!B170 -> 0 | C170: =SUMIF('رصيد اول'!$A:$B,'رصيد اول'!A170,'رصيد اول'!C:C) -> 0 | D170: 0 | E170: =SUMIF(الوارد!$D:$D,الرصيد!A170,الوارد!F:F) -> 0 | F170: 0 | G170: =SUMIF(المنصرف!$C$1:$C$10000,A170,المنصرف!E:E) -> 0 | H170: 0 | I170: 0 | J170: 0 | K170: ='رصيد اول'!D170 -> 0
A171: ='رصيد اول'!A171 -> 0 | B171: ='رصيد اول'!B171 -> 0 | C171: =SUMIF('رصيد اول'!$A:$B,'رصيد اول'!A171,'رصيد اول'!C:C) -> 0 | D171: 0 | E171: =SUMIF(الوارد!$D:$D,الرصيد!A171,الوارد!F:F) -> 0 | F171: 0 | G171: =SUMIF(المنصرف!$C$1:$C$10000,A171,المنصرف!E:E) -> 0 | H171: 0 | I171: 0 | J171: 0 | K171: ='رصيد اول'!D171 -> 0
A172: ='رصيد اول'!A172 -> 0 | B172: ='رصيد اول'!B172 -> 0 | C172: =SUMIF('رصيد اول'!$A:$B,'رصيد اول'!A172,'رصيد اول'!C:C) -> 0 | D172: 0 | E172: =SUMIF(الوارد!$D:$D,الرصيد!A172,الوارد!F:F) -> 0 | F172: 0 | G172: =SUMIF(المنصرف!$C$1:$C$10000,A172,المنصرف!E:E) -> 0 | H172: 0 | I172: 0 | J172: 0 | K172: ='رصيد اول'!D172 -> 0
A173: ='رصيد اول'!A173 -> 0 | B173: ='رصيد اول'!B173 -> 0 | C173: =SUMIF('رصيد اول'!$A:$B,'رصيد اول'!A173,'رصيد اول'!C:C) -> 0 | D173: 0 | E173: =SUMIF(الوارد!$D:$D,الرصيد!A173,الوارد!F:F) -> 0 | F173: 0 | G173: =SUMIF(المنصرف!$C$1:$C$10000,A173,المنصرف!E:E) -> 0 | H173: 0 | I173: 0 | J173: 0 | K173: ='رصيد اول'!D173 -> 0
A174: ='رصيد اول'!A174 -> 0 | B174: ='رصيد اول'!B174 -> 0 | C174: =SUMIF('رصيد اول'!$A:$B,'رصيد اول'!A174,'رصيد اول'!C:C) -> 0 | D174: 0 | E174: =SUMIF(الوارد!$D:$D,الرصيد!A174,الوارد!F:F) -> 0 | F174: 0 | G174: =SUMIF(المنصرف!$C$1:$C$10000,A174,المنصرف!E:E) -> 0 | H174: 0 | I174: 0 | J174: 0 | K174: ='رصيد اول'!D174 -> 0
A175: ='رصيد اول'!A175 -> 0 | B175: ='رصيد اول'!B175 -> 0 | C175: =SUMIF('رصيد اول'!$A:$B,'رصيد اول'!A175,'رصيد اول'!C:C) -> 0 | D175: 0 | E175: =SUMIF(الوارد!$D:$D,الرصيد!A175,الوارد!F:F) -> 0 | F175: 0 | G175: =SUMIF(المنصرف!$C$1:$C$10000,A175,المنصرف!E:E) -> 0 | H175: 0 | I175: 0 | J175: 0 | K175: ='رصيد اول'!D175 -> 0
A176: ='رصيد اول'!A176 -> 0 | B176: ='رصيد اول'!B176 -> 0 | C176: =SUMIF('رصيد اول'!$A:$B,'رصيد اول'!A176,'رصيد اول'!C:C) -> 0 | D176: 0 | E176: =SUMIF(الوارد!$D:$D,الرصيد!A176,الوارد!F:F) -> 0 | F176: 0 | G176: =SUMIF(المنصرف!$C$1:$C$10000,A176,المنصرف!E:E) -> 0 | H176: 0 | I176: 0 | J176: 0 | K176: ='رصيد اول'!D176 -> 0
A177: ='رصيد اول'!A177 -> 0 | B177: ='رصيد اول'!B177 -> 0 | C177: =SUMIF('رصيد اول'!$A:$B,'رصيد اول'!A177,'رصيد اول'!C:C) -> 0 | D177: 0 | E177: =SUMIF(الوارد!$D:$D,الرصيد!A177,الوارد!F:F) -> 0 | F177: 0 | G177: =SUMIF(المنصرف!$C$1:$C$10000,A177,المنصرف!E:E) -> 0 | H177: 0 | I177: 0 | J177: 0 | K177: ='رصيد اول'!D177 -> 0
A178: ='رصيد اول'!A178 -> 0 | B178: ='رصيد اول'!B178 -> 0 | C178: =SUMIF('رصيد اول'!$A:$B,'رصيد اول'!A178,'رصيد اول'!C:C) -> 0 | D178: 0 | E178: =SUMIF(الوارد!$D:$D,الرصيد!A178,الوارد!F:F) -> 0 | F178: 0 | G178: =SUMIF(المنصرف!$C$1:$C$10000,A178,المنصرف!E:E) -> 0 | H178: 0 | I178: 0 | J178: 0 | K178: ='رصيد اول'!D178 -> 0
A179: ='رصيد اول'!A179 -> 0 | B179: ='رصيد اول'!B179 -> 0 | C179: =SUMIF('رصيد اول'!$A:$B,'رصيد اول'!A179,'رصيد اول'!C:C) -> 0 | D179: 0 | E179: =SUMIF(الوارد!$D:$D,الرصيد!A179,الوارد!F:F) -> 0 | F179: 0 | G179: =SUMIF(المنصرف!$C$1:$C$10000,A179,المنصرف!E:E) -> 0 | H179: 0 | I179: 0 | J179: 0 | K179: ='رصيد اول'!D179 -> 0
A180: ='رصيد اول'!A180 -> 0 | B180: ='رصيد اول'!B180 -> 0 | C180: =SUMIF('رصيد اول'!$A:$B,'رصيد اول'!A180,'رصيد اول'!C:C) -> 0 | D180: 0 | E180: =SUMIF(الوارد!$D:$D,الرصيد!A180,الوارد!F:F) -> 0 | F180: 0 | G180: =SUMIF(المنصرف!$C$1:$C$10000,A180,المنصرف!E:E) -> 0 | H180: 0 | I180: 0 | J180: 0 | K180: ='رصيد اول'!D180 -> 0
A181: ='رصيد اول'!A181 -> 0 | B181: ='رصيد اول'!B181 -> 0 | C181: =SUMIF('رصيد اول'!$A:$B,'رصيد اول'!A181,'رصيد اول'!C:C) -> 0 | D181: 0 | E181: =SUMIF(الوارد!$D:$D,الرصيد!A181,الوارد!F:F) -> 0 | F181: 0 | G181: =SUMIF(المنصرف!$C$1:$C$10000,A181,المنصرف!E:E) -> 0 | H181: 0 | I181: 0 | J181: 0 | K181: ='رصيد اول'!D181 -> 0
A182: ='رصيد اول'!A182 -> 0 | B182: ='رصيد اول'!B182 -> 0 | C182: =SUMIF('رصيد اول'!$A:$B,'رصيد اول'!A182,'رصيد اول'!C:C) -> 0 | D182: 0 | E182: =SUMIF(الوارد!$D:$D,الرصيد!A182,الوارد!F:F) -> 0 | F182: 0 | G182: =SUMIF(المنصرف!$C$1:$C$10000,A182,المنصرف!E:E) -> 0 | H182: 0 | I182: 0 | J182: 0 | K182: ='رصيد اول'!D182 -> 0
A183: ='رصيد اول'!A183 -> 0 | B183: ='رصيد اول'!B183 -> 0 | C183: =SUMIF('رصيد اول'!$A:$B,'رصيد اول'!A183,'رصيد اول'!C:C) -> 0 | D183: 0 | E183: =SUMIF(الوارد!$D:$D,الرصيد!A183,الوارد!F:F) -> 0 | F183: 0 | G183: =SUMIF(المنصرف!$C$1:$C$10000,A183,المنصرف!E:E) -> 0 | H183: 0 | I183: 0 | J183: 0 | K183: ='رصيد اول'!D183 -> 0
A184: ='رصيد اول'!A184 -> 0 | B184: ='رصيد اول'!B184 -> 0 | C184: =SUMIF('رصيد اول'!$A:$B,'رصيد اول'!A184,'رصيد اول'!C:C) -> 0 | D184: 0 | E184: =SUMIF(الوارد!$D:$D,الرصيد!A184,الوارد!F:F) -> 0 | F184: 0 | G184: =SUMIF(المنصرف!$C$1:$C$10000,A184,المنصرف!E:E) -> 0 | H184: 0 | I184: 0 | J184: 0 | K184: ='رصيد اول'!D184 -> 0
A185: ='رصيد اول'!A185 -> 0 | B185: ='رصيد اول'!B185 -> 0 | C185: =SUMIF('رصيد اول'!$A:$B,'رصيد اول'!A185,'رصيد اول'!C:C) -> 0 | D185: 0 | E185: =SUMIF(الوارد!$D:$D,الرصيد!A185,الوارد!F:F) -> 0 | F185: 0 | G185: =SUMIF(المنصرف!$C$1:$C$10000,A185,المنصرف!E:E) -> 0 | H185: 0 | I185: 0 | J185: 0 | K185: ='رصيد اول'!D185 -> 0
A186: ='رصيد اول'!A186 -> 0 | B186: ='رصيد اول'!B186 -> 0 | C186: =SUMIF('رصيد اول'!$A:$B,'رصيد اول'!A186,'رصيد اول'!C:C) -> 0 | D186: 0 | E186: =SUMIF(الوارد!$D:$D,الرصيد!A186,الوارد!F:F) -> 0 | F186: 0 | G186: =SUMIF(المنصرف!$C$1:$C$10000,A186,المنصرف!E:E) -> 0 | H186: 0 | I186: 0 | J186: 0 | K186: ='رصيد اول'!D186 -> 0
A187: ='رصيد اول'!A187 -> 0 | B187: ='رصيد اول'!B187 -> 0 | C187: =SUMIF('رصيد اول'!$A:$B,'رصيد اول'!A187,'رصيد اول'!C:C) -> 0 | D187: 0 | E187: =SUMIF(الوارد!$D:$D,الرصيد!A187,الوارد!F:F) -> 0 | F187: 0 | G187: =SUMIF(المنصرف!$C$1:$C$10000,A187,المنصرف!E:E) -> 0 | H187: 0 | I187: 0 | J187: 0 | K187: ='رصيد اول'!D187 -> 0
A188: ='رصيد اول'!A188 -> 0 | B188: ='رصيد اول'!B188 -> 0 | C188: =SUMIF('رصيد اول'!$A:$B,'رصيد اول'!A188,'رصيد اول'!C:C) -> 0 | D188: 0 | E188: =SUMIF(الوارد!$D:$D,الرصيد!A188,الوارد!F:F) -> 0 | F188: 0 | G188: =SUMIF(المنصرف!$C$1:$C$10000,A188,المنصرف!E:E) -> 0 | H188: 0 | I188: 0 | J188: 0 | K188: ='رصيد اول'!D188 -> 0
A189: ='رصيد اول'!A189 -> 0 | B189: ='رصيد اول'!B189 -> 0 | C189: =SUMIF('رصيد اول'!$A:$B,'رصيد اول'!A189,'رصيد اول'!C:C) -> 0 | D189: 0 | E189: =SUMIF(الوارد!$D:$D,الرصيد!A189,الوارد!F:F) -> 0 | F189: 0 | G189: =SUMIF(المنصرف!$C$1:$C$10000,A189,المنصرف!E:E) -> 0 | H189: 0 | I189: 0 | J189: 0 | K189: ='رصيد اول'!D189 -> 0
A190: ='رصيد اول'!A190 -> 0 | B190: ='رصيد اول'!B190 -> 0 | C190: =SUMIF('رصيد اول'!$A:$B,'رصيد اول'!A190,'رصيد اول'!C:C) -> 0 | D190: 0 | E190: =SUMIF(الوارد!$D:$D,الرصيد!A190,الوارد!F:F) -> 0 | F190: 0 | G190: =SUMIF(المنصرف!$C$1:$C$10000,A190,المنصرف!E:E) -> 0 | H190: 0 | I190: 0 | J190: 0 | K190: ='رصيد اول'!D190 -> 0
A191: ='رصيد اول'!A191 -> 0 | B191: ='رصيد اول'!B191 -> 0 | C191: =SUMIF('رصيد اول'!$A:$B,'رصيد اول'!A191,'رصيد اول'!C:C) -> 0 | D191: 0 | E191: =SUMIF(الوارد!$D:$D,الرصيد!A191,الوارد!F:F) -> 0 | F191: 0 | G191: =SUMIF(المنصرف!$C$1:$C$10000,A191,المنصرف!E:E) -> 0 | H191: 0 | I191: 0 | J191: 0 | K191: ='رصيد اول'!D191 -> 0
A192: ='رصيد اول'!A192 -> 0 | B192: ='رصيد اول'!B192 -> 0 | C192: =SUMIF('رصيد اول'!$A:$B,'رصيد اول'!A192,'رصيد اول'!C:C) -> 0 | D192: 0 | E192: =SUMIF(الوارد!$D:$D,الرصيد!A192,الوارد!F:F) -> 0 | F192: 0 | G192: =SUMIF(المنصرف!$C$1:$C$10000,A192,المنصرف!E:E) -> 0 | H192: 0 | I192: 0 | J192: 0 | K192: ='رصيد اول'!D192 -> 0
A193: ='رصيد اول'!A193 -> 0 | B193: ='رصيد اول'!B193 -> 0 | C193: =SUMIF('رصيد اول'!$A:$B,'رصيد اول'!A193,'رصيد اول'!C:C) -> 0 | D193: 0 | E193: =SUMIF(الوارد!$D:$D,الرصيد!A193,الوارد!F:F) -> 0 | F193: 0 | G193: =SUMIF(المنصرف!$C$1:$C$10000,A193,المنصرف!E:E) -> 0 | H193: 0 | I193: 0 | J193: 0 | K193: ='رصيد اول'!D193 -> 0
A194: ='رصيد اول'!A194 -> 0 | B194: ='رصيد اول'!B194 -> 0 | C194: =SUMIF('رصيد اول'!$A:$B,'رصيد اول'!A194,'رصيد اول'!C:C) -> 0 | D194: 0 | E194: =SUMIF(الوارد!$D:$D,الرصيد!A194,الوارد!F:F) -> 0 | F194: 0 | G194: =SUMIF(المنصرف!$C$1:$C$10000,A194,المنصرف!E:E) -> 0 | H194: 0 | I194: 0 | J194: 0 | K194: ='رصيد اول'!D194 -> 0
A195: ='رصيد اول'!A195 -> 0 | B195: ='رصيد اول'!B195 -> 0 | C195: =SUMIF('رصيد اول'!$A:$B,'رصيد اول'!A195,'رصيد اول'!C:C) -> 0 | D195: 0 | E195: =SUMIF(الوارد!$D:$D,الرصيد!A195,الوارد!F:F) -> 0 | F195: 0 | G195: =SUMIF(المنصرف!$C$1:$C$10000,A195,المنصرف!E:E) -> 0 | H195: 0 | I195: =C195+E195-G195 -> 0 | J195: 0 | K195: ='رصيد اول'!D195 -> 0
A196: ='رصيد اول'!A196 -> 0 | B196: ='رصيد اول'!B196 -> 0 | C196: =SUMIF('رصيد اول'!$A:$B,'رصيد اول'!A196,'رصيد اول'!C:C) -> 0 | D196: =C196*K196 -> 0 | E196: =SUMIF(الوارد!$D:$D,الرصيد!A196,الوارد!F:F) -> 0 | F196: =+E196*K196 -> 0 | G196: =SUMIF(المنصرف!$C$1:$C$10000,A196,المنصرف!E:E) -> 0 | H196: =G196*K196 -> 0 | I196: 0 | J196: =I196*K196 -> 0 | K196: ='رصيد اول'!D196 -> 0
A197: ='رصيد اول'!A197 -> 0 | B197: ='رصيد اول'!B197 -> 0 | C197: =SUMIF('رصيد اول'!$A:$B,'رصيد اول'!A197,'رصيد اول'!C:C) -> 0 | D197: 0 | E197: =SUMIF(الوارد!$D:$D,الرصيد!A197,الوارد!F:F) -> 0 | F197: 0 | G197: =SUMIF(المنصرف!$C$1:$C$10000,A197,المنصرف!E:E) -> 0 | H197: 0 | I197: 0 | J197: 0 | K197: ='رصيد اول'!D197 -> 0
A198: ='رصيد اول'!A198 -> 0 | B198: ='رصيد اول'!B198 -> 0 | C198: =SUMIF('رصيد اول'!$A:$B,'رصيد اول'!A198,'رصيد اول'!C:C) -> 0 | D198: 0 | E198: =SUMIF(الوارد!$D:$D,الرصيد!A198,الوارد!F:F) -> 0 | F198: 0 | G198: =SUMIF(المنصرف!$C$1:$C$10000,A198,المنصرف!E:E) -> 0 | H198: 0 | I198: 0 | J198: 0 | K198: ='رصيد اول'!D198 -> 0
A199: ='رصيد اول'!A199 -> 0 | B199: ='رصيد اول'!B199 -> 0 | C199: =SUMIF('رصيد اول'!$A:$B,'رصيد اول'!A199,'رصيد اول'!C:C) -> 0 | D199: 0 | E199: =SUMIF(الوارد!$D:$D,الرصيد!A199,الوارد!F:F) -> 0 | F199: 0 | G199: =SUMIF(المنصرف!$C$1:$C$10000,A199,المنصرف!E:E) -> 0 | H199: 0 | I199: 0 | J199: 0 | K199: ='رصيد اول'!D199 -> 0
A200: ='رصيد اول'!A200 -> 0 | B200: ='رصيد اول'!B200 -> 0 | C200: =SUMIF('رصيد اول'!$A:$B,'رصيد اول'!A200,'رصيد اول'!C:C) -> 0 | D200: 0 | E200: =SUMIF(الوارد!$D:$D,الرصيد!A200,الوارد!F:F) -> 0 | F200: 0 | G200: =SUMIF(المنصرف!$C$1:$C$10000,A200,المنصرف!E:E) -> 0 | H200: 0 | I200: 0 | J200: 0 | K200: ='رصيد اول'!D200 -> 0
... 305 more rows
